{"text_format":"3","workbook":"xlsx","n_sheets":8,"sheets":["GPA","Pre-requisites","Other program specific courses","Other relevant information","SOP","Pre-mapping","English","Countries"],"not_rendered":{"images":2,"external_links":2,"defined_names":7},"read":"whole","date_system":"1900"}

{"sheet":"GPA","index":0,"n_rows":270,"n_cols":26,"rows_kept":270,"merged":[[3,0,5,9],[6,0,6,11],[9,1,9,6],[10,1,10,6],[11,1,11,6],[14,1,14,6],[15,1,15,6],[17,6,17,7],[18,10,18,14],[19,5,19,6],[19,10,19,14]]}
[]
[]
["              Pre-Mapping for the MSc programme in Communication Technologies and System Design "]
[]
[]
[]
["- This Excel workbook contains 6 sheets (\"GPA\", \"Pre-requisites\", \"Other program specific courses \", \"Other relevant information\", \"SOP\" and \"English\"). The whole workbook has to be uploaded with your application as a single file, in excel format (*.xlsx).\n- This workbook is used only as a part of the full assessment of your qualifications and the people evaluating your data have a good understanding of the pitfalls when translating between different grading systems.\n- After entering all your courses, if everything has been done correctly, the \"GPA\" field should calculate the corresponding estimations automatically. If not, please review all the data you have entered for errors. In case of problems, please contact: mscadmissions@adm.dtu.dk\n- If you want to know more about the cells, you can select them to read more about them.\n\n- This sheet should be filled with Microsoft Excel. Other editors may tamper with the formating."]
[]
["Step 1 - Information about you:",{"$nulls":10},"Bachelor of Arts with a specialization in Engineering or Natural Science",{"$nulls":13},"Bachelor of Natural Science"]
["Full name:",{"$nulls":10},"Yes",{"$nulls":13},"Bachelor of Engineering"]
["Country of home University:",{"$nulls":10},"No",{"$nulls":13},"Bachelor of Science in Engineering"]
["Name of home University:",{"$nulls":10},"Pass/Fail",{"$nulls":13},"Bachelor of Arts with a specialization in Engineering or Natural Science"]
[{"$nulls":11},"Numbers",{"$nulls":13},"Other"]
["Step 2 -  Information on your Bachelor degree:",{"$nulls":10},"Letters"]
["Title of qualifying degree:"]
["Type of Bachelor's degree:"]
["Nominal length of qualifying degree (years):"]
["Minimum required credits for graduation (home university):",{"$nulls":5},"Select an option below:"]
["Convert total amount of local credit to ECTS:\nCheck for more information about conversion here",{"$nulls":3},"Have you had a DTU student number previously?",{"$nulls":3},"GPA:",{"$f":"IFERROR(IF(SUM(ISNUMBER(B40),ISNUMBER(C40),ISNUMBER(B41),ISNUMBER(C41),ISNUMBER(C42),ISNUMBER(B42))=6,SUMPRODUCT(B40:B139,C40:C139)/SUM(B40:B139),\" \"),\" \")","v":" "},"Make sure GPA shows a valid number. \nIf not, check if you filled all the cells correctly. "]
["Step 3 - Information on grade/score/mark scale at your home university:",{"$nulls":3},"Student number:",{"$nulls":3},"GPA100%:",{"$f":"IFERROR(IF(SUM(ISNUMBER(B40),ISNUMBER(C40),ISNUMBER(B41),ISNUMBER(C41),ISNUMBER(C42),ISNUMBER(B42))=6,SUMPRODUCT(B40:B139,(B22-C40:C139)/(B22-B24))/SUM(B40:B139)*100,\"\"),\"\")","v":""}]
["Are your grades/marks/scores numbers or letters or pass/fail?",null,"Select an option"]
["What is the minimum classification in your university?",null,{"$f":"IF(B21=\"Letters\", \"Please convert your grades:\", IF(OR(B21=\"Pass/Fail\"), \"Leave these cells blank\", \"\"))","v":""},{"$nulls":7},"An estimate of your Danish GPA (linear conversion to the danish grading system)",{"$nulls":14},"AD - Andorra"]
["How much do you need to pass a course in your university?",null,{"$f":"IF(B21=\"Letters\", \"Example: If your grades are from A(min) to E(max), you should type 1 to 5\", IF(OR(B21=\"Pass/Fail\"), \"Leave these cells blank\", \"\"))","v":""},{"$nulls":7},"GPA for courses of prerequisites (your home university grading scale)",{"$nulls":14},"AE - United Arab Emirates"]
["What is the best possible classification in your university?",null,{"$f":"IF(B21=\"Letters\", \"\", IF(OR(B21=\"Pass/Fail\"), \"Leave these cells blank\", \"\"))","v":""},{"$nulls":22},"AF - Afghanistan"]
[{"$nulls":25},"AG - Antigua and Barbuda"]
[{"$nulls":25},"AI - Anguilla"]
[{"$nulls":25},"AL - Albania"]
[{"$nulls":25},"AM - Armenia"]
[{"$nulls":25},"AO - Angola"]
[{"$nulls":25},"AQ - Antarctica"]
["Be careful! You might need to fill more than 1 table!",{"$nulls":24},"AR - Argentina"]
[{"$nulls":25},"AS - American Samoa"]
[{"$nulls":25},"AT - Austria"]
[{"$nulls":25},"AU - Australia"]
[{"$nulls":25},"AW - Aruba"]
["Mandatory field - Pre-Mapping ",{"$nulls":24},"AX - Åland Islands"]
["- In the rows below, course name, credits and grades should be provided in accordance with your transcript.\n\n- In the 'Specific course description link' column, insert the official course description links for the courses from your home university that fall into at least one of the subjects, if written in English. If an English course description is not available, please upload a PDF.\n- Be sure to input only numerical values and use a dot (or comma depending on your computer settings) to separate the decimals.\n- Enter all completed courses from your BSc studies. Any Pass/Fail courses should be provided in the designated table below this table. In case you have not finished your BSc programme yet, provide the ongoing courses in the designated table.","Credits (BSc)","Local Grade (Bsc)",null,"Select an option below ",{"$nulls":8},"AZ - Azerbaijan",{"$nulls":4},"AZ - Azerbaijan",{"$nulls":6},"AZ - Azerbaijan"]
["Credit estimation for relevant topic",{"$f":"SUM(B40:B139,B141:B190)","v":0},null,"Is the website about the course in English?",{"$nulls":9},"BA - Bosnia and Herzegovina",{"$nulls":4},"BA - Bosnia and Herzegovina",{"$nulls":6},"BA - Bosnia and Herzegovina"]
["Grade estimation for relevant topic",null,{"$f":"IFERROR(AVERAGE(C40:C139),)","v":{"v":0,"d":"0.0"}},"Specific course description links (if availabe in EN)\nonly use if the course falls into the categories mentioned","Comments (if any)",{"$nulls":5},"Ongoing Courses","Credits","Comments",{"$nulls":5},"BB - Barbados",{"$nulls":6},"BB - Barbados"]
["Write the name of course no. 1",{"$nulls":9},"Write name (and/or) course code of course no. 1",{"$nulls":6},"BD - Bangladesh",{"$nulls":7},"BD - Bangladesh"]
["Write the name of course no. 2",{"$nulls":9},"Write name (and/or) course code of course no. 2",{"$nulls":6},"BE - Belgium",{"$nulls":7},"BE - Belgium"]
["Write the name of course no. 3",{"$nulls":9},"Write name (and/or) course code of course no. 3",{"$nulls":6},"BF - Burkina Faso",{"$nulls":7},"BF - Burkina Faso"]
["Write the name of course no. 4",{"$nulls":9},"Write name (and/or) course code of course no. 4",{"$nulls":6},"BG - Bulgaria",{"$nulls":7},"BG - Bulgaria"]
["Write the name of course no. 5",{"$nulls":9},"Write name (and/or) course code of course no. 5",{"$nulls":6},"BH - Bahrain",{"$nulls":7},"BH - Bahrain"]
["Write the name of course no. 6",{"$nulls":9},"Write name (and/or) course code of course no. 6",{"$nulls":6},"BI - Burundi",{"$nulls":7},"BI - Burundi"]
["Write the name of course no. 7",{"$nulls":9},"Write name (and/or) course code of course no. 7",{"$nulls":6},"BJ - Benin",{"$nulls":7},"BJ - Benin"]
["Write the name of course no. 8",{"$nulls":9},"Write name (and/or) course code of course no. 8",{"$nulls":6},"BL - Saint Barthélemy",{"$nulls":7},"BL - Saint Barthélemy"]
["Write the name of course no. 9",{"$nulls":9},"Write name (and/or) course code of course no. 9",{"$nulls":6},"BM - Bermuda",{"$nulls":7},"BM - Bermuda"]
["Write the name of course no. 10",{"$nulls":9},"Write name (and/or) course code of course no. 10",{"$nulls":6},"BN - Brunei Darussalam",{"$nulls":7},"BN - Brunei Darussalam"]
["Write the name of course no. 11",{"$nulls":9},"Write name (and/or) course code of course no. 11",{"$nulls":6},"BO - Bolivia (Plurinational State of)",{"$nulls":7},"BO - Bolivia (Plurinational State of)"]
["Write the name of course no. 12",{"$nulls":9},"Write name (and/or) course code of course no. 12",{"$nulls":6},"BQ - Bonaire, Sint Eustatius and Saba",{"$nulls":7},"BQ - Bonaire, Sint Eustatius and Saba"]
["Write the name of course no. 13",{"$nulls":9},"Write name (and/or) course code of course no. 13",{"$nulls":6},"BR - Brazil",{"$nulls":7},"BR - Brazil"]
["Write the name of course no. 14",{"$nulls":9},"Write name (and/or) course code of course no. 14",{"$nulls":6},"BS - Bahamas",{"$nulls":7},"BS - Bahamas"]
["Write the name of course no. 15",{"$nulls":9},"Write name (and/or) course code of course no. 15",{"$nulls":6},"BT - Bhutan",{"$nulls":7},"BT - Bhutan"]
["Write the name of course no. 16",{"$nulls":9},"Write name (and/or) course code of course no. 16",{"$nulls":6},"BV - Bouvet Island",{"$nulls":7},"BV - Bouvet Island"]
["Write the name of course no. 17",{"$nulls":9},"Write name (and/or) course code of course no. 17",{"$nulls":6},"BW - Botswana",{"$nulls":7},"BW - Botswana"]
["Write the name of course no. 18",{"$nulls":9},"Write name (and/or) course code of course no. 18",{"$nulls":6},"BY - Belarus",{"$nulls":7},"BY - Belarus"]
["Write the name of course no. 19",{"$nulls":9},"Write name (and/or) course code of course no. 19",{"$nulls":6},"BZ - Belize",{"$nulls":7},"BZ - Belize"]
["Write the name of course no. 20",{"$nulls":9},"Write name (and/or) course code of course no. 20",{"$nulls":6},"CA - Canada",{"$nulls":7},"CA - Canada"]
["Write the name of course no. 21",{"$nulls":9},"Write name (and/or) course code of course no. 21",{"$nulls":6},"CC - Cocos (Keeling) Islands",{"$nulls":7},"CC - Cocos (Keeling) Islands"]
["Write the name of course no. 22",{"$nulls":9},"Write name (and/or) course code of course no. 22",{"$nulls":6},"CD - Congo, Democratic Republic of the",{"$nulls":7},"CD - Congo, Democratic Republic of the"]
["Write the name of course no. 23",{"$nulls":9},"Write name (and/or) course code of course no. 23",{"$nulls":6},"CF - Central African Republic",{"$nulls":7},"CF - Central African Republic"]
["Write the name of course no. 24",{"$nulls":9},"Write name (and/or) course code of course no. 24",{"$nulls":6},"CG - Congo",{"$nulls":7},"CG - Congo"]
["Write the name of course no. 25",{"$nulls":9},"Write name (and/or) course code of course no. 25",{"$nulls":6},"CH - Switzerland",{"$nulls":7},"CH - Switzerland"]
["Write the name of course no. 26",{"$nulls":9},"Write name (and/or) course code of course no. 26",{"$nulls":6},"CI - Côte d'Ivoire",{"$nulls":7},"CI - Côte d'Ivoire"]
["Write the name of course no. 27",{"$nulls":9},"Write name (and/or) course code of course no. 27",{"$nulls":6},"CK - Cook Islands",{"$nulls":7},"CK - Cook Islands"]
["Write the name of course no. 28",{"$nulls":9},"Write name (and/or) course code of course no. 28",{"$nulls":6},"CL - Chile",{"$nulls":7},"CL - Chile"]
["Write the name of course no. 29",{"$nulls":9},"Write name (and/or) course code of course no. 29",{"$nulls":6},"CM - Cameroon",{"$nulls":7},"CM - Cameroon"]
["Write the name of course no. 30",{"$nulls":9},"Ongoing Credits Total:",{"$f":"SUM(L40:L68)","v":0},{"$nulls":6},"CN - China",{"$nulls":6},"CN - China"]
["Write the name of course no. 31",{"$nulls":12},"CO - Colombia",{"$nulls":4},"CO - Colombia",{"$nulls":6},"CO - Colombia"]
["Write the name of course no. 32",{"$nulls":12},"CR - Costa Rica",{"$nulls":4},"CR - Costa Rica",{"$nulls":6},"CR - Costa Rica"]
["Write the name of course no. 33",{"$nulls":12},"CU - Cuba",{"$nulls":4},"CU - Cuba",{"$nulls":6},"CU - Cuba"]
["Write the name of course no. 34",{"$nulls":12},"CV - Cabo Verde",{"$nulls":4},"CV - Cabo Verde",{"$nulls":6},"CV - Cabo Verde"]
["Write the name of course no. 35",{"$nulls":12},"CW - Curaçao",{"$nulls":4},"CW - Curaçao",{"$nulls":6},"CW - Curaçao"]
["Write the name of course no. 36",{"$nulls":12},"CX - Christmas Island",{"$nulls":4},"CX - Christmas Island",{"$nulls":6},"CX - Christmas Island"]
["Write the name of course no. 37",{"$nulls":12},"CY - Cyprus",{"$nulls":4},"CY - Cyprus",{"$nulls":6},"CY - Cyprus"]
["Write the name of course no. 38",{"$nulls":12},"CZ - Czechia",{"$nulls":4},"CZ - Czechia",{"$nulls":6},"CZ - Czechia"]
["Write the name of course no. 39",{"$nulls":12},"DE - Germany",{"$nulls":4},"DE - Germany",{"$nulls":6},"DE - Germany"]
["Write the name of course no. 40",{"$nulls":12},"DJ - Djibouti",{"$nulls":4},"DJ - Djibouti",{"$nulls":6},"DJ - Djibouti"]
["Write the name of course no. 41",{"$nulls":12},"DK - Denmark",{"$nulls":4},"DK - Denmark",{"$nulls":6},"DK - Denmark"]
["Write the name of course no. 42",{"$nulls":12},"DM - Dominica",{"$nulls":4},"DM - Dominica",{"$nulls":6},"DM - Dominica"]
["Write the name of course no. 43",{"$nulls":12},"DO - Dominican Republic",{"$nulls":4},"DO - Dominican Republic",{"$nulls":6},"DO - Dominican Republic"]
["Write the name of course no. 44",{"$nulls":12},"DZ - Algeria",{"$nulls":4},"DZ - Algeria",{"$nulls":6},"DZ - Algeria"]
["Write the name of course no. 45",{"$nulls":12},"EC - Ecuador",{"$nulls":4},"EC - Ecuador",{"$nulls":6},"EC - Ecuador"]
["Write the name of course no. 46",{"$nulls":12},"EE - Estonia",{"$nulls":4},"EE - Estonia",{"$nulls":6},"EE - Estonia"]
["Write the name of course no. 47",{"$nulls":12},"EG - Egypt",{"$nulls":4},"EG - Egypt",{"$nulls":6},"EG - Egypt"]
["Write the name of course no. 48",{"$nulls":12},"EH - Western Sahara",{"$nulls":4},"EH - Western Sahara",{"$nulls":6},"EH - Western Sahara"]
["Write the name of course no. 49",{"$nulls":12},"ER - Eritrea",{"$nulls":4},"ER - Eritrea",{"$nulls":6},"ER - Eritrea"]
["Write the name of course no. 50",{"$nulls":12},"ES - Spain",{"$nulls":4},"ES - Spain",{"$nulls":6},"ES - Spain"]
["Write the name of course no. 51",{"$nulls":12},"ET - Ethiopia",{"$nulls":4},"ET - Ethiopia",{"$nulls":6},"ET - Ethiopia"]
["Write the name of course no. 52",{"$nulls":12},"FI - Finland",{"$nulls":4},"FI - Finland",{"$nulls":6},"FI - Finland"]
["Write the name of course no. 53",{"$nulls":12},"FJ - Fiji",{"$nulls":4},"FJ - Fiji",{"$nulls":6},"FJ - Fiji"]
["Write the name of course no. 54",{"$nulls":12},"FK - Falkland Islands (Malvinas)",{"$nulls":4},"FK - Falkland Islands (Malvinas)",{"$nulls":6},"FK - Falkland Islands (Malvinas)"]
["Write the name of course no. 55",{"$nulls":12},"FM - Micronesia (Federated States of)",{"$nulls":4},"FM - Micronesia (Federated States of)",{"$nulls":6},"FM - Micronesia (Federated States of)"]
["Write the name of course no. 56",{"$nulls":12},"FO - Faroe Islands",{"$nulls":4},"FO - Faroe Islands",{"$nulls":6},"FO - Faroe Islands"]
["Write the name of course no. 57",{"$nulls":12},"FR - France",{"$nulls":4},"FR - France",{"$nulls":6},"FR - France"]
["Write the name of course no. 58",{"$nulls":12},"GA - Gabon",{"$nulls":4},"GA - Gabon",{"$nulls":6},"GA - Gabon"]
["Write the name of course no. 59",{"$nulls":12},"GB - United Kingdom of Great Britain and Northern Ireland",{"$nulls":4},"GB - United Kingdom of Great Britain and Northern Ireland",{"$nulls":6},"GB - United Kingdom of Great Britain and Northern Ireland"]
["Write the name of course no. 60",{"$nulls":12},"GD - Grenada",{"$nulls":4},"GD - Grenada",{"$nulls":6},"GD - Grenada"]
["Write the name of course no. 61",{"$nulls":12},"GE - Georgia",{"$nulls":4},"GE - Georgia",{"$nulls":6},"GE - Georgia"]
["Write the name of course no. 62",{"$nulls":12},"GF - French Guiana",{"$nulls":4},"GF - French Guiana",{"$nulls":6},"GF - French Guiana"]
["Write the name of course no. 63",{"$nulls":12},"GG - Guernsey",{"$nulls":4},"GG - Guernsey",{"$nulls":6},"GG - Guernsey"]
["Write the name of course no. 64",{"$nulls":12},"GH - Ghana",{"$nulls":4},"GH - Ghana",{"$nulls":6},"GH - Ghana"]
["Write the name of course no. 65",{"$nulls":12},"GI - Gibraltar",{"$nulls":4},"GI - Gibraltar",{"$nulls":6},"GI - Gibraltar"]
["Write the name of course no. 66",{"$nulls":12},"GL - Greenland",{"$nulls":4},"GL - Greenland",{"$nulls":6},"GL - Greenland"]
["Write the name of course no. 67",{"$nulls":12},"GM - Gambia",{"$nulls":4},"GM - Gambia",{"$nulls":6},"GM - Gambia"]
["Write the name of course no. 68",{"$nulls":12},"GN - Guinea",{"$nulls":4},"GN - Guinea",{"$nulls":6},"GN - Guinea"]
["Write the name of course no. 69",{"$nulls":12},"GP - Guadeloupe",{"$nulls":4},"GP - Guadeloupe",{"$nulls":6},"GP - Guadeloupe"]
["Write the name of course no. 70",{"$nulls":12},"GQ - Equatorial Guinea",{"$nulls":4},"GQ - Equatorial Guinea",{"$nulls":6},"GQ - Equatorial Guinea"]
["Write the name of course no. 71",{"$nulls":12},"GR - Greece",{"$nulls":4},"GR - Greece",{"$nulls":6},"GR - Greece"]
["Write the name of course no. 72",{"$nulls":12},"GS - South Georgia and the South Sandwich Islands",{"$nulls":4},"GS - South Georgia and the South Sandwich Islands",{"$nulls":6},"GS - South Georgia and the South Sandwich Islands"]
["Write the name of course no. 73",{"$nulls":12},"GT - Guatemala",{"$nulls":4},"GT - Guatemala",{"$nulls":6},"GT - Guatemala"]
["Write the name of course no. 74",{"$nulls":12},"GU - Guam",{"$nulls":4},"GU - Guam",{"$nulls":6},"GU - Guam"]
["Write the name of course no. 75",{"$nulls":12},"GW - Guinea-Bissau",{"$nulls":4},"GW - Guinea-Bissau",{"$nulls":6},"GW - Guinea-Bissau"]
["Write the name of course no. 76",{"$nulls":12},"GY - Guyana",{"$nulls":4},"GY - Guyana",{"$nulls":6},"GY - Guyana"]
["Write the name of course no. 77",{"$nulls":12},"HK - Hong Kong",{"$nulls":4},"HK - Hong Kong",{"$nulls":6},"HK - Hong Kong"]
["Write the name of course no. 78",{"$nulls":12},"HM - Heard Island and McDonald Islands",{"$nulls":4},"HM - Heard Island and McDonald Islands",{"$nulls":6},"HM - Heard Island and McDonald Islands"]
["Write the name of course no. 79",{"$nulls":12},"HN - Honduras",{"$nulls":4},"HN - Honduras",{"$nulls":6},"HN - Honduras"]
["Write the name of course no. 80",{"$nulls":12},"HR - Croatia",{"$nulls":4},"HR - Croatia",{"$nulls":6},"HR - Croatia"]
["Write the name of course no. 81",{"$nulls":12},"HT - Haiti",{"$nulls":4},"HT - Haiti",{"$nulls":6},"HT - Haiti"]
["Write the name of course no. 82",{"$nulls":12},"HU - Hungary",{"$nulls":4},"HU - Hungary",{"$nulls":6},"HU - Hungary"]
["Write the name of course no. 83",{"$nulls":12},"ID - Indonesia",{"$nulls":4},"ID - Indonesia",{"$nulls":6},"ID - Indonesia"]
["Write the name of course no. 84",{"$nulls":12},"IE - Ireland",{"$nulls":4},"IE - Ireland",{"$nulls":6},"IE - Ireland"]
["Write the name of course no. 85",{"$nulls":12},"IL - Israel",{"$nulls":4},"IL - Israel",{"$nulls":6},"IL - Israel"]
["Write the name of course no. 86",{"$nulls":12},"IM - Isle of Man",{"$nulls":4},"IM - Isle of Man",{"$nulls":6},"IM - Isle of Man"]
["Write the name of course no. 87",{"$nulls":12},"IN - India",{"$nulls":4},"IN - India",{"$nulls":6},"IN - India"]
["Write the name of course no. 88",{"$nulls":12},"IO - British Indian Ocean Territory",{"$nulls":4},"IO - British Indian Ocean Territory",{"$nulls":6},"IO - British Indian Ocean Territory"]
["Write the name of course no. 89",{"$nulls":12},"IQ - Iraq",{"$nulls":4},"IQ - Iraq",{"$nulls":6},"IQ - Iraq"]
["Write the name of course no. 90",{"$nulls":12},"IR - Iran (Islamic Republic of)",{"$nulls":4},"IR - Iran (Islamic Republic of)",{"$nulls":6},"IR - Iran (Islamic Republic of)"]
["Write the name of course no. 91",{"$nulls":12},"IS - Iceland",{"$nulls":4},"IS - Iceland",{"$nulls":6},"IS - Iceland"]
["Write the name of course no. 92",{"$nulls":12},"IT - Italy",{"$nulls":4},"IT - Italy",{"$nulls":6},"IT - Italy"]
["Write the name of course no. 93",{"$nulls":12},"JE - Jersey",{"$nulls":4},"JE - Jersey",{"$nulls":6},"JE - Jersey"]
["Write the name of course no. 94",{"$nulls":12},"JM - Jamaica",{"$nulls":4},"JM - Jamaica",{"$nulls":6},"JM - Jamaica"]
["Write the name of course no. 95",{"$nulls":12},"JO - Jordan",{"$nulls":4},"JO - Jordan",{"$nulls":6},"JO - Jordan"]
["Write the name of course no. 96",{"$nulls":12},"JP - Japan",{"$nulls":4},"JP - Japan",{"$nulls":6},"JP - Japan"]
["Write the name of course no. 97",{"$nulls":12},"KE - Kenya",{"$nulls":4},"KE - Kenya",{"$nulls":6},"KE - Kenya"]
["Write the name of course no. 98",{"$nulls":12},"KG - Kyrgyzstan",{"$nulls":4},"KG - Kyrgyzstan",{"$nulls":6},"KG - Kyrgyzstan"]
["Write the name of course no. 99",{"$nulls":12},"KH - Cambodia",{"$nulls":4},"KH - Cambodia",{"$nulls":6},"KH - Cambodia"]
["Write the name of course no. 100",{"$nulls":12},"KI - Kiribati",{"$nulls":4},"KI - Kiribati",{"$nulls":6},"KI - Kiribati"]
["Non-numerically graded courses OR Pass/fail courses",{"$nulls":12},"NR - Nauru",{"$nulls":4},"NR - Nauru",{"$nulls":6},"KM - Comoros"]
["Write name of course no. 1",{"$nulls":12},"NU - Niue",{"$nulls":4},"NU - Niue",{"$nulls":6},"KN - Saint Kitts and Nevis"]
["Write name of course no. 2",{"$nulls":12},"NZ - New Zealand",{"$nulls":4},"NZ - New Zealand",{"$nulls":6},"KP - Korea (Democratic People's Republic of)"]
["Write name of course no. 3",{"$nulls":12},"OM - Oman",{"$nulls":4},"OM - Oman",{"$nulls":6},"KR - Korea, Republic of"]
["Write name of course no. 4",{"$nulls":12},"PA - Panama",{"$nulls":4},"PA - Panama",{"$nulls":6},"KW - Kuwait"]
["Write name of course no. 5",{"$nulls":12},"PE - Peru",{"$nulls":4},"PE - Peru",{"$nulls":6},"KY - Cayman Islands"]
["Write name of course no. 6",{"$nulls":12},"PF - French Polynesia",{"$nulls":4},"PF - French Polynesia",{"$nulls":6},"KZ - Kazakhstan"]
["Write name of course no. 7",{"$nulls":12},"PG - Papua New Guinea",{"$nulls":4},"PG - Papua New Guinea",{"$nulls":6},"LA - Lao People's Democratic Republic"]
["Write name of course no. 8",{"$nulls":12},"PH - Philippines",{"$nulls":4},"PH - Philippines",{"$nulls":6},"LB - Lebanon"]
["Write name of course no. 9",{"$nulls":12},"PK - Pakistan",{"$nulls":4},"PK - Pakistan",{"$nulls":6},"LC - Saint Lucia"]
["Write name of course no. 10",{"$nulls":12},"PL - Poland",{"$nulls":4},"PL - Poland",{"$nulls":6},"LI - Liechtenstein"]
["Write name of course no. 11",{"$nulls":12},"PM - Saint Pierre and Miquelon",{"$nulls":4},"PM - Saint Pierre and Miquelon",{"$nulls":6},"LK - Sri Lanka"]
["Write name of course no. 12",{"$nulls":12},"PN - Pitcairn",{"$nulls":4},"PN - Pitcairn",{"$nulls":6},"LR - Liberia"]
["Write name of course no. 13",{"$nulls":12},"PR - Puerto Rico",{"$nulls":4},"PR - Puerto Rico",{"$nulls":6},"LS - Lesotho"]
["Write name of course no. 14",{"$nulls":12},"PS - Palestine, State of",{"$nulls":4},"PS - Palestine, State of",{"$nulls":6},"LT - Lithuania"]
["Write name of course no. 15",{"$nulls":12},"PT - Portugal",{"$nulls":4},"PT - Portugal",{"$nulls":6},"LU - Luxembourg"]
["Write name of course no. 16",{"$nulls":12},"PW - Palau",{"$nulls":4},"PW - Palau",{"$nulls":6},"LV - Latvia"]
["Write name of course no. 17",{"$nulls":12},"PY - Paraguay",{"$nulls":4},"PY - Paraguay",{"$nulls":6},"LY - Libya"]
["Write name of course no. 18",{"$nulls":12},"QA - Qatar",{"$nulls":4},"QA - Qatar",{"$nulls":6},"MA - Morocco"]
["Write name of course no. 19",{"$nulls":12},"RE - Réunion",{"$nulls":4},"RE - Réunion",{"$nulls":6},"MC - Monaco"]
["Write name of course no. 20",{"$nulls":12},"RO - Romania",{"$nulls":4},"RO - Romania",{"$nulls":6},"MD - Moldova, Republic of"]
["Write name of course no. 21",{"$nulls":12},"RS - Serbia",{"$nulls":4},"RS - Serbia",{"$nulls":6},"ME - Montenegro"]
["Write name of course no. 22",{"$nulls":12},"RU - Russian Federation",{"$nulls":4},"RU - Russian Federation",{"$nulls":6},"MF - Saint Martin (French part)"]
["Write name of course no. 23",{"$nulls":12},"RW - Rwanda",{"$nulls":4},"RW - Rwanda",{"$nulls":6},"MG - Madagascar"]
["Write name of course no. 24",{"$nulls":12},"SA - Saudi Arabia",{"$nulls":4},"SA - Saudi Arabia",{"$nulls":6},"MH - Marshall Islands"]
["Write name of course no. 25",{"$nulls":12},"SB - Solomon Islands",{"$nulls":4},"SB - Solomon Islands",{"$nulls":6},"MK - North Macedonia"]
["Write name of course no. 26",{"$nulls":12},"SC - Seychelles",{"$nulls":4},"SC - Seychelles",{"$nulls":6},"ML - Mali"]
["Write name of course no. 27",{"$nulls":12},"SD - Sudan",{"$nulls":4},"SD - Sudan",{"$nulls":6},"MM - Myanmar"]
["Write name of course no. 28",{"$nulls":12},"SE - Sweden",{"$nulls":4},"SE - Sweden",{"$nulls":6},"MN - Mongolia"]
["Write name of course no. 29",{"$nulls":12},"SG - Singapore",{"$nulls":4},"SG - Singapore",{"$nulls":6},"MO - Macao"]
["Write name of course no. 30",{"$nulls":12},"SH - Saint Helena, Ascension and Tristan da Cunha",{"$nulls":4},"SH - Saint Helena, Ascension and Tristan da Cunha",{"$nulls":6},"MP - Northern Mariana Islands"]
["Write name of course no. 31",{"$nulls":12},"SI - Slovenia",{"$nulls":4},"SI - Slovenia",{"$nulls":6},"MQ - Martinique"]
["Write name of course no. 32",{"$nulls":12},"SJ - Svalbard and Jan Mayen",{"$nulls":4},"SJ - Svalbard and Jan Mayen",{"$nulls":6},"MR - Mauritania"]
["Write name of course no. 33",{"$nulls":12},"SK - Slovakia",{"$nulls":4},"SK - Slovakia",{"$nulls":6},"MS - Montserrat"]
["Write name of course no. 34",{"$nulls":12},"SL - Sierra Leone",{"$nulls":4},"SL - Sierra Leone",{"$nulls":6},"MT - Malta"]
["Write name of course no. 35",{"$nulls":12},"SM - San Marino",{"$nulls":4},"SM - San Marino",{"$nulls":6},"MU - Mauritius"]
["Write name of course no. 36",{"$nulls":12},"SN - Senegal",{"$nulls":4},"SN - Senegal",{"$nulls":6},"MV - Maldives"]
["Write name of course no. 37",{"$nulls":12},"SO - Somalia",{"$nulls":4},"SO - Somalia",{"$nulls":6},"MW - Malawi"]
["Write name of course no. 38",{"$nulls":12},"SR - Suriname",{"$nulls":4},"SR - Suriname",{"$nulls":6},"MX - Mexico"]
["Write name of course no. 39",{"$nulls":12},"SS - South Sudan",{"$nulls":4},"SS - South Sudan",{"$nulls":6},"MY - Malaysia"]
["Write name of course no. 40",{"$nulls":12},"ST - Sao Tome and Principe",{"$nulls":4},"ST - Sao Tome and Principe",{"$nulls":6},"MZ - Mozambique"]
["Write name of course no. 41",{"$nulls":12},"SV - El Salvador",{"$nulls":4},"SV - El Salvador",{"$nulls":6},"NA - Namibia"]
["Write name of course no. 42",{"$nulls":12},"SX - Sint Maarten (Dutch part)",{"$nulls":4},"SX - Sint Maarten (Dutch part)",{"$nulls":6},"NC - New Caledonia"]
["Write name of course no. 43",{"$nulls":12},"SY - Syrian Arab Republic",{"$nulls":4},"SY - Syrian Arab Republic",{"$nulls":6},"NE - Niger"]
["Write name of course no. 44",{"$nulls":12},"SZ - Eswatini",{"$nulls":4},"SZ - Eswatini",{"$nulls":6},"NF - Norfolk Island"]
["Write name of course no. 45",{"$nulls":12},"TC - Turks and Caicos Islands",{"$nulls":4},"TC - Turks and Caicos Islands",{"$nulls":6},"NG - Nigeria"]
["Write name of course no. 46",{"$nulls":12},"TD - Chad",{"$nulls":4},"TD - Chad",{"$nulls":6},"NI - Nicaragua"]
["Write name of course no. 47",{"$nulls":12},"TF - French Southern Territories",{"$nulls":4},"TF - French Southern Territories",{"$nulls":6},"NL - Netherlands"]
["Write name of course no. 48",{"$nulls":12},"TG - Togo",{"$nulls":4},"TG - Togo",{"$nulls":6},"NO - Norway"]
["Write name of course no. 49",{"$nulls":12},"TH - Thailand",{"$nulls":4},"TH - Thailand",{"$nulls":6},"NP - Nepal"]
["Write name of course no. 50",{"$nulls":12},"TJ - Tajikistan",{"$nulls":4},"TJ - Tajikistan",{"$nulls":6},"NR - Nauru"]
["Pass/Fail Credits Total:",{"$f":"SUM(B141:B190)","v":0},{"$nulls":23},"NU - Niue"]
[{"$nulls":25},"NZ - New Zealand"]
[{"$nulls":25},"OM - Oman"]
[{"$nulls":25},"PA - Panama"]
[{"$nulls":25},"PE - Peru"]
[{"$nulls":25},"PF - French Polynesia"]
[{"$nulls":25},"PG - Papua New Guinea"]
[{"$nulls":25},"PH - Philippines"]
[{"$nulls":25},"PK - Pakistan"]
[{"$nulls":25},"PL - Poland"]
[{"$nulls":25},"PM - Saint Pierre and Miquelon"]
[{"$nulls":25},"PN - Pitcairn"]
[{"$nulls":25},"PR - Puerto Rico"]
[{"$nulls":25},"PS - Palestine, State of"]
[{"$nulls":25},"PT - Portugal"]
[{"$nulls":25},"PW - Palau"]
[{"$nulls":25},"PY - Paraguay"]
[{"$nulls":25},"QA - Qatar"]
[{"$nulls":25},"RE - Réunion"]
[{"$nulls":25},"RO - Romania"]
[{"$nulls":25},"RS - Serbia"]
[{"$nulls":25},"RU - Russian Federation"]
[{"$nulls":25},"RW - Rwanda"]
[{"$nulls":25},"SA - Saudi Arabia"]
[{"$nulls":25},"SB - Solomon Islands"]
[{"$nulls":25},"SC - Seychelles"]
[{"$nulls":25},"SD - Sudan"]
[{"$nulls":25},"SE - Sweden"]
[{"$nulls":25},"SG - Singapore"]
[{"$nulls":25},"SH - Saint Helena, Ascension and Tristan da Cunha"]
[{"$nulls":25},"SI - Slovenia"]
[{"$nulls":25},"SJ - Svalbard and Jan Mayen"]
[{"$nulls":25},"SK - Slovakia"]
[{"$nulls":25},"SL - Sierra Leone"]
[{"$nulls":25},"SM - San Marino"]
[{"$nulls":25},"SN - Senegal"]
[{"$nulls":25},"SO - Somalia"]
[{"$nulls":25},"SR - Suriname"]
[{"$nulls":25},"SS - South Sudan"]
[{"$nulls":25},"ST - Sao Tome and Principe"]
[{"$nulls":25},"SV - El Salvador"]
[{"$nulls":25},"SX - Sint Maarten (Dutch part)"]
[{"$nulls":25},"SY - Syrian Arab Republic"]
[{"$nulls":25},"SZ - Eswatini"]
[{"$nulls":25},"TC - Turks and Caicos Islands"]
[{"$nulls":25},"TD - Chad"]
[{"$nulls":25},"TF - French Southern Territories"]
[{"$nulls":25},"TG - Togo"]
[{"$nulls":25},"TH - Thailand"]
[{"$nulls":25},"TJ - Tajikistan"]
[{"$nulls":25},"TK - Tokelau"]
[{"$nulls":25},"TL - Timor-Leste"]
[{"$nulls":25},"TM - Turkmenistan"]
[{"$nulls":25},"TN - Tunisia"]
[{"$nulls":25},"TO - Tonga"]
[{"$nulls":25},"TR - Turkey"]
[{"$nulls":25},"TT - Trinidad and Tobago"]
[{"$nulls":25},"TV - Tuvalu"]
[{"$nulls":25},"TW - Taiwan, Province of China"]
[{"$nulls":25},"TZ - Tanzania, United Republic of"]
[{"$nulls":25},"UA - Ukraine"]
[{"$nulls":25},"UG - Uganda"]
[{"$nulls":25},"UM - United States Minor Outlying Islands"]
[{"$nulls":25},"US - United States of America"]
[{"$nulls":25},"UY - Uruguay"]
[{"$nulls":25},"UZ - Uzbekistan"]
[{"$nulls":25},"VA - Holy See"]
[{"$nulls":25},"VC - Saint Vincent and the Grenadines"]
[{"$nulls":25},"VE - Venezuela (Bolivarian Republic of)"]
[{"$nulls":25},"VG - Virgin Islands (British)"]
[{"$nulls":25},"VI - Virgin Islands (U.S.)"]
[{"$nulls":25},"VN - Viet Nam"]
[{"$nulls":25},"VU - Vanuatu"]
[{"$nulls":25},"WF - Wallis and Futuna"]
[{"$nulls":25},"WS - Samoa"]
[{"$nulls":25},"YE - Yemen"]
[{"$nulls":25},"YT - Mayotte"]
[{"$nulls":25},"ZA - South Africa"]
[{"$nulls":25},"ZM - Zambia"]
[{"$nulls":25},"ZW - Zimbabwe"]

{"sheet":"Pre-requisites","index":1,"n_rows":99,"n_cols":25,"rows_kept":99,"merged":[[3,0,5,9],[7,0,7,9],[53,0,53,2]]}
[]
[]
[{"$f":"GPA!A3","v":"              Pre-Mapping for the MSc programme in Communication Technologies and System Design "}]
[]
[]
[]
[{"$nulls":24},"AS - American Samoa"]
["- In the rows below, course name, credits and grades should be provided for the courses you took and match the topics highlighted in the table\nYou are supposed to select some of the courses you typed in the previous sheet. The head of studies will look at the courses you took that fulfill the requiremets for the MSc programme.\n- The subject columns should be filled in providing a rough estimate of the course content in percentage. Only include major course contributions greater than or equal to 30% and only contributions where the subject(s) is being taught as distinguished from merely being used. \n- Be sure to input only numerical values and use a dot (or comma depending on your computer settings) to separate the decimals.\n",{"$nulls":23},"AT - Austria"]
[{"$nulls":24},"AU - Australia"]
[{"$nulls":24},"AW - Aruba"]
["Mandatory field - Programme-specific relevant courses",{"$nulls":23},"AX - Åland Islands"]
["Numerically graded courses ","Credits (BSc)","Converted credits to ECTS","Local Grade (Bsc)","Grade\n100% scale","Mathematics  ","Cyber technology ","Programing","Datacommunication networks ","Mobile communication ","Internet of things ","Electromagnetism  ","Fibre optic communication ","Digital communication  ","Digital hardwaredesign  ","Other",null,null,"AZ - Azerbaijan"]
["Credit estimation for relevant topic",{"$f":"SUM(B15:B53,B55:B69)","v":0},{"$f":"SUM(C15:C53,C55:C69)","v":0},null,null,{"$f":"IFERROR(SUMPRODUCT($B$15:$B$69,F$15:F$69)/100,\"\")","v":{"v":0,"d":"0.0"}},{"$f":"IFERROR(SUMPRODUCT($B$15:$B$69,G$15:G$69)/100,\"\")","v":{"v":0,"d":"0.0"}},{"v":0,"d":"0.0"},{"v":0,"d":"0.0"},{"v":0,"d":"0.0"},{"v":0,"d":"0.0"},{"v":0,"d":"0.0"},{"v":0,"d":"0.0"},{"v":0,"d":"0.0"},{"v":0,"d":"0.0"},{"$f":"IFERROR((B13-SUM(F13:O13))/B13,\"\")","v":""},null,null,"BA - Bosnia and Herzegovina"]
["Grade estimation for relevant topic",null,null,{"$f":"IFERROR(AVERAGE(D15:D53),)","v":{"v":0,"d":"0.0"}},{"$f":"IFERROR(AVERAGEIF(E15:E53, \"<>0\"), \"0\")","v":"0"},{"$f":"IFERROR(SUMPRODUCT($B$15:$B$53,$D$15:$D$53,F15:F53)/SUMPRODUCT($B$15:$B$53,F15:F53),0)","v":{"v":0,"d":"0.0"}},{"v":0,"d":"0.0"},{"v":0,"d":"0.0"},{"v":0,"d":"0.0"},{"v":0,"d":"0.0"},{"v":0,"d":"0.0"},{"v":0,"d":"0.0"},{"v":0,"d":"0.0"},{"v":0,"d":"0.0"},{"v":0,"d":"0.0"},{"v":0,"d":"0.0"},"Specific course description links (if availabe in EN)\nonly use if the course falls into the categories mentioned","Comments (if any)","BB - Barbados"]
["Write the name of course no. 1",{"$nulls":3},{"$f":"IF(D15>0,(GPA!$B$22-D15)/(GPA!$B$22-GPA!$B$24)*100,0)","v":{"v":0,"d":"0% "}},{"$nulls":10},{"$f":"IF(ISBLANK(B15),\" \",100-SUM(F15:O15))","v":" "},null,null,"BD - Bangladesh"]
["Write the name of course no. 2",{"$nulls":3},{"$f":"IF(D16>0,(GPA!$B$22-D16)/(GPA!$B$22-GPA!$B$24)*100,0)","v":{"v":0,"d":"0% "}},{"$nulls":10},{"$f":"IF(ISBLANK(B16),\" \",100-SUM(F16:O16))","v":" "},null,null,"BE - Belgium"]
["Write the name of course no. 3",{"$nulls":3},{"$f":"IF(D17>0,(GPA!$B$22-D17)/(GPA!$B$22-GPA!$B$24)*100,0)","v":{"v":0,"d":"0% "}},{"$nulls":10}," ",null,null,"BF - Burkina Faso"]
["Write the name of course no. 4",{"$nulls":3},{"$f":"IF(D18>0,(GPA!$B$22-D18)/(GPA!$B$22-GPA!$B$24)*100,0)","v":{"v":0,"d":"0% "}},{"$nulls":10},{"$f":"IF(ISBLANK(B18),\" \",100-SUM(F18:O18))","v":" "},null,null,"BG - Bulgaria"]
["Write the name of course no. 5",{"$nulls":3},{"$f":"IF(D19>0,(GPA!$B$22-D19)/(GPA!$B$22-GPA!$B$24)*100,0)","v":{"v":0,"d":"0% "}},{"$nulls":10},{"$f":"IF(ISBLANK(B19),\" \",100-SUM(F19:O19))","v":" "},null,null,"BH - Bahrain"]
["Write the name of course no. 6",{"$nulls":3},{"$f":"IF(D20>0,(GPA!$B$22-D20)/(GPA!$B$22-GPA!$B$24)*100,0)","v":{"v":0,"d":"0% "}},{"$nulls":10}," ",null,null,"BI - Burundi"]
["Write the name of course no. 7",{"$nulls":3},{"$f":"IF(D21>0,(GPA!$B$22-D21)/(GPA!$B$22-GPA!$B$24)*100,0)","v":{"v":0,"d":"0% "}},{"$nulls":10}," ",null,null,"BJ - Benin"]
["Write the name of course no. 8",{"$nulls":3},{"$f":"IF(D22>0,(GPA!$B$22-D22)/(GPA!$B$22-GPA!$B$24)*100,0)","v":{"v":0,"d":"0% "}},{"$nulls":10}," ",null,null,"BL - Saint Barthélemy"]
["Write the name of course no. 9",{"$nulls":3},{"$f":"IF(D23>0,(GPA!$B$22-D23)/(GPA!$B$22-GPA!$B$24)*100,0)","v":{"v":0,"d":"0% "}},{"$nulls":10}," ",null,null,"BM - Bermuda"]
["Write the name of course no. 10",{"$nulls":3},{"$f":"IF(D24>0,(GPA!$B$22-D24)/(GPA!$B$22-GPA!$B$24)*100,0)","v":{"v":0,"d":"0% "}},{"$nulls":10}," ",null,null,"BN - Brunei Darussalam"]
["Write the name of course no. 11",{"$nulls":3},{"$f":"IF(D25>0,(GPA!$B$22-D25)/(GPA!$B$22-GPA!$B$24)*100,0)","v":{"v":0,"d":"0% "}},{"$nulls":10}," ",null,null,"BO - Bolivia (Plurinational State of)"]
["Write the name of course no. 12",{"$nulls":3},{"$f":"IF(D26>0,(GPA!$B$22-D26)/(GPA!$B$22-GPA!$B$24)*100,0)","v":{"v":0,"d":"0% "}},{"$nulls":10}," ",null,null,"BQ - Bonaire, Sint Eustatius and Saba"]
["Write the name of course no. 13",{"$nulls":3},{"$f":"IF(D27>0,(GPA!$B$22-D27)/(GPA!$B$22-GPA!$B$24)*100,0)","v":{"v":0,"d":"0% "}},{"$nulls":10}," ",null,null,"BR - Brazil"]
["Write the name of course no. 14",{"$nulls":3},{"$f":"IF(D28>0,(GPA!$B$22-D28)/(GPA!$B$22-GPA!$B$24)*100,0)","v":{"v":0,"d":"0% "}},{"$nulls":10}," ",null,null,"BS - Bahamas"]
["Write the name of course no. 15",{"$nulls":3},{"$f":"IF(D29>0,(GPA!$B$22-D29)/(GPA!$B$22-GPA!$B$24)*100,0)","v":{"v":0,"d":"0% "}},{"$nulls":10}," ",null,null,"BT - Bhutan"]
["Write the name of course no. 16",{"$nulls":3},{"$f":"IF(D30>0,(GPA!$B$22-D30)/(GPA!$B$22-GPA!$B$24)*100,0)","v":{"v":0,"d":"0% "}},{"$nulls":10}," ",null,null,"BV - Bouvet Island"]
["Write the name of course no. 17",{"$nulls":3},{"$f":"IF(D31>0,(GPA!$B$22-D31)/(GPA!$B$22-GPA!$B$24)*100,0)","v":{"v":0,"d":"0% "}},{"$nulls":10}," ",null,null,"BW - Botswana"]
["Write the name of course no. 18",{"$nulls":3},{"$f":"IF(D32>0,(GPA!$B$22-D32)/(GPA!$B$22-GPA!$B$24)*100,0)","v":{"v":0,"d":"0% "}},{"$nulls":10}," ",null,null,"BY - Belarus"]
["Write the name of course no. 19",{"$nulls":3},{"$f":"IF(D33>0,(GPA!$B$22-D33)/(GPA!$B$22-GPA!$B$24)*100,0)","v":{"v":0,"d":"0% "}},{"$nulls":10}," ",null,null,"BZ - Belize"]
["Write the name of course no. 20",{"$nulls":3},{"$f":"IF(D34>0,(GPA!$B$22-D34)/(GPA!$B$22-GPA!$B$24)*100,0)","v":{"v":0,"d":"0% "}},{"$nulls":10}," ",null,null,"CA - Canada"]
["Write the name of course no. 21",{"$nulls":3},{"$f":"IF(D35>0,(GPA!$B$22-D35)/(GPA!$B$22-GPA!$B$24)*100,0)","v":{"v":0,"d":"0% "}},{"$nulls":10}," ",null,null,"BE - Belgium"]
["Write the name of course no. 22",{"$nulls":3},{"$f":"IF(D36>0,(GPA!$B$22-D36)/(GPA!$B$22-GPA!$B$24)*100,0)","v":{"v":0,"d":"0% "}},{"$nulls":10}," ",null,null,"BF - Burkina Faso"]
["Write the name of course no. 23",{"$nulls":3},{"$f":"IF(D37>0,(GPA!$B$22-D37)/(GPA!$B$22-GPA!$B$24)*100,0)","v":{"v":0,"d":"0% "}},{"$nulls":10},{"$f":"IF(ISBLANK(B37),\" \",100-SUM(F37:O37))","v":" "},null,null,"BG - Bulgaria"]
["Write the name of course no. 24",{"$nulls":3},{"$f":"IF(D38>0,(GPA!$B$22-D38)/(GPA!$B$22-GPA!$B$24)*100,0)","v":{"v":0,"d":"0% "}},{"$nulls":10}," ",null,null,"BH - Bahrain"]
["Write the name of course no. 25",{"$nulls":3},{"$f":"IF(D39>0,(GPA!$B$22-D39)/(GPA!$B$22-GPA!$B$24)*100,0)","v":{"v":0,"d":"0% "}},{"$nulls":10}," ",null,null,"BI - Burundi"]
["Write the name of course no. 26",{"$nulls":3},{"$f":"IF(D40>0,(GPA!$B$22-D40)/(GPA!$B$22-GPA!$B$24)*100,0)","v":{"v":0,"d":"0% "}},{"$nulls":10}," ",null,null,"BJ - Benin"]
["Write the name of course no. 27",{"$nulls":3},{"$f":"IF(D41>0,(GPA!$B$22-D41)/(GPA!$B$22-GPA!$B$24)*100,0)","v":{"v":0,"d":"0% "}},{"$nulls":10}," ",null,null,"BL - Saint Barthélemy"]
["Write the name of course no. 28",{"$nulls":3},{"$f":"IF(D42>0,(GPA!$B$22-D42)/(GPA!$B$22-GPA!$B$24)*100,0)","v":{"v":0,"d":"0% "}},{"$nulls":10}," ",null,null,"BM - Bermuda"]
["Write the name of course no. 29",{"$nulls":3},{"$f":"IF(D43>0,(GPA!$B$22-D43)/(GPA!$B$22-GPA!$B$24)*100,0)","v":{"v":0,"d":"0% "}},{"$nulls":10}," ",null,null,"BN - Brunei Darussalam"]
["Write the name of course no. 30",{"$nulls":3},{"$f":"IF(D44>0,(GPA!$B$22-D44)/(GPA!$B$22-GPA!$B$24)*100,0)","v":{"v":0,"d":"0% "}},{"$nulls":10}," ",null,null,"BO - Bolivia (Plurinational State of)"]
["Write the name of course no. 31",{"$nulls":3},{"$f":"IF(D45>0,(GPA!$B$22-D45)/(GPA!$B$22-GPA!$B$24)*100,0)","v":{"v":0,"d":"0% "}},{"$nulls":10}," ",null,null,"BQ - Bonaire, Sint Eustatius and Saba"]
["Write the name of course no. 32",{"$nulls":3},{"$f":"IF(D46>0,(GPA!$B$22-D46)/(GPA!$B$22-GPA!$B$24)*100,0)","v":{"v":0,"d":"0% "}},{"$nulls":10}," ",null,null,"BR - Brazil"]
["Write the name of course no. 33",{"$nulls":3},{"$f":"IF(D47>0,(GPA!$B$22-D47)/(GPA!$B$22-GPA!$B$24)*100,0)","v":{"v":0,"d":"0% "}},{"$nulls":10}," ",null,null,"BS - Bahamas"]
["Write the name of course no. 34",{"$nulls":3},{"$f":"IF(D48>0,(GPA!$B$22-D48)/(GPA!$B$22-GPA!$B$24)*100,0)","v":{"v":0,"d":"0% "}},{"$nulls":10}," ",null,null,"BT - Bhutan"]
["Write the name of course no. 35",{"$nulls":3},{"$f":"IF(D49>0,(GPA!$B$22-D49)/(GPA!$B$22-GPA!$B$24)*100,0)","v":{"v":0,"d":"0% "}},{"$nulls":10}," ",null,null,"BV - Bouvet Island"]
["Write the name of course no. 36",{"$nulls":3},{"$f":"IF(D50>0,(GPA!$B$22-D50)/(GPA!$B$22-GPA!$B$24)*100,0)","v":{"v":0,"d":"0% "}},{"$nulls":10}," ",null,null,"BW - Botswana"]
["Write the name of course no. 37",{"$nulls":3},{"$f":"IF(D51>0,(GPA!$B$22-D51)/(GPA!$B$22-GPA!$B$24)*100,0)","v":{"v":0,"d":"0% "}},{"$nulls":10}," ",null,null,"BY - Belarus"]
["Write the name of course no. 38",{"$nulls":3},{"$f":"IF(D52>0,(GPA!$B$22-D52)/(GPA!$B$22-GPA!$B$24)*100,0)","v":{"v":0,"d":"0% "}},{"$nulls":10}," ",null,null,"BZ - Belize"]
["Write the name of course no. 39",{"$nulls":3},{"$f":"IF(D53>0,(GPA!$B$22-D53)/(GPA!$B$22-GPA!$B$24)*100,0)","v":{"v":0,"d":"0% "}},{"$nulls":10}," ",null,null,"CA - Canada"]
["Non-numerically graded courses OR Pass/fail courses",{"$nulls":17},"NR - Nauru"]
["Write name of course no. 1",{"$nulls":14},{"$f":"IF(ISBLANK(B55),\" \",100-SUM(F55:O55))","v":" "},null,null,"NU - Niue"]
["Write name of course no. 2",{"$nulls":14}," ",null,null,"NZ - New Zealand"]
["Write name of course no. 3",{"$nulls":14}," ",null,null,"OM - Oman"]
["Write name of course no. 4",{"$nulls":14}," ",null,null,"PA - Panama"]
["Write name of course no. 5",{"$nulls":14}," ",null,null,"PE - Peru"]
["Write name of course no. 6",{"$nulls":14}," ",null,null,"PF - French Polynesia"]
["Write name of course no. 7",{"$nulls":14}," ",null,null,"PG - Papua New Guinea"]
["Write name of course no. 8",{"$nulls":14}," ",null,null,"PH - Philippines"]
["Write name of course no. 9",{"$nulls":14}," ",null,null,"PK - Pakistan"]
["Write name of course no. 10",{"$nulls":14}," ",null,null,"PL - Poland"]
["Write name of course no. 11",{"$nulls":14}," ",null,null,"PM - Saint Pierre and Miquelon"]
["Write name of course no. 12",{"$nulls":14}," ",null,null,"PN - Pitcairn"]
["Write name of course no. 13",{"$nulls":14}," ",null,null,"PR - Puerto Rico"]
["Write name of course no. 14",{"$nulls":14}," ",null,null,"PS - Palestine, State of"]
["Write name of course no. 15",{"$nulls":14}," ",null,null,"PT - Portugal"]
["Pass/Fail Credits Total:",{"$f":"SUM(B55:B69)","v":0},{"$nulls":22},"TK - Tokelau"]
[{"$nulls":24},"TL - Timor-Leste"]
[{"$nulls":24},"TM - Turkmenistan"]
[{"$nulls":24},"TN - Tunisia"]
[{"$nulls":24},"TO - Tonga"]
[{"$nulls":24},"TR - Turkey"]
[{"$nulls":24},"TT - Trinidad and Tobago"]
[{"$nulls":24},"TV - Tuvalu"]
[{"$nulls":24},"TW - Taiwan, Province of China"]
[{"$nulls":24},"TZ - Tanzania, United Republic of"]
[{"$nulls":24},"UA - Ukraine"]
[{"$nulls":24},"UG - Uganda"]
[{"$nulls":24},"UM - United States Minor Outlying Islands"]
[{"$nulls":24},"US - United States of America"]
[{"$nulls":24},"UY - Uruguay"]
[{"$nulls":24},"UZ - Uzbekistan"]
[{"$nulls":24},"VA - Holy See"]
[{"$nulls":24},"VC - Saint Vincent and the Grenadines"]
[{"$nulls":24},"VE - Venezuela (Bolivarian Republic of)"]
[{"$nulls":24},"VG - Virgin Islands (British)"]
[{"$nulls":24},"VI - Virgin Islands (U.S.)"]
[{"$nulls":24},"VN - Viet Nam"]
[{"$nulls":24},"VU - Vanuatu"]
[{"$nulls":24},"WF - Wallis and Futuna"]
[{"$nulls":24},"WS - Samoa"]
[{"$nulls":24},"YE - Yemen"]
[{"$nulls":24},"YT - Mayotte"]
[{"$nulls":24},"ZA - South Africa"]
[{"$nulls":24},"ZM - Zambia"]
[{"$nulls":24},"ZW - Zimbabwe"]

{"sheet":"Other program specific courses","index":2,"n_rows":94,"n_cols":26,"rows_kept":94,"merged":[[6,0,6,6],[12,0,21,0],[12,1,12,3],[13,1,13,3],[14,1,14,3],[15,1,15,3],[16,1,16,3],[17,1,17,3],[18,1,18,3],[19,1,19,3],[20,1,20,3],[21,1,21,3],[22,0,31,0],[22,1,22,3],[23,1,23,3],[24,1,24,3],[25,1,25,3],[26,1,26,3],[27,1,27,3],[28,1,28,3],[29,1,29,3],[30,1,30,3],[31,1,31,3],[32,0,41,0],[32,1,32,3],[33,1,33,3],[34,1,34,3],[35,1,35,3],[36,1,36,3],[37,1,37,3],[38,1,38,3],[39,1,39,3],[40,1,40,3],[41,1,41,3],[42,0,51,0],[42,1,42,3],[43,1,43,3],[44,1,44,3],[45,1,45,3],[46,1,46,3],[47,1,47,3],[48,1,48,3],[49,1,49,3],[50,1,50,3],[51,1,51,3],[52,0,61,0],[52,1,52,3],[53,1,53,3],[54,1,54,3],[55,1,55,3],[56,1,56,3],[57,1,57,3],[58,1,58,3],[59,1,59,3],[60,1,60,3],[61,1,61,3]]}
[]
[]
[{"$f":"GPA!A3","v":"              Pre-Mapping for the MSc programme in Communication Technologies and System Design "}]
[]
[]
[]
["- In the rows below, course name, credits and grades should be provided for other courses you took that fall under the multiple categories.\n- Positive assessment will be given to applicants having academic knowledge in the courses below.\nYou are supposed to select some of the courses you typped in the first sheet. The head of studies will look at the courses you took that compliment the requiremets for the MSc programme.\n"]
[]
[{"$nulls":25},"AW - Aruba"]
["Mandatory field - Other relevant courses",{"$nulls":24},"AX - Åland Islands"]
[{"$nulls":13},"AZ - Azerbaijan",{"$nulls":4},"AZ - Azerbaijan"]
["Subject area","Course title(s)",null,null,"Credits\nLocal","Credits\nECTS","Grade",{"$nulls":5},"BA - Bosnia and Herzegovina"]
["Optical communication",{"$nulls":12},"BB - Barbados"]
[{"$nulls":12},"BD - Bangladesh"]
[{"$nulls":12},"BE - Belgium"]
[{"$nulls":12},"BF - Burkina Faso"]
[{"$nulls":12},"BG - Bulgaria"]
[{"$nulls":12},"BH - Bahrain"]
[{"$nulls":12},"BI - Burundi"]
[{"$nulls":12},"BJ - Benin"]
[{"$nulls":12},"BL - Saint Barthélemy"]
[{"$nulls":12},"BM - Bermuda"]
["Internet of Things and mobile communication",{"$nulls":11},"BN - Brunei Darussalam"]
[{"$nulls":12},"BO - Bolivia (Plurinational State of)"]
[{"$nulls":12},"BQ - Bonaire, Sint Eustatius and Saba"]
[{"$nulls":12},"BR - Brazil"]
[{"$nulls":12},"BS - Bahamas"]
[{"$nulls":12},"BT - Bhutan"]
[{"$nulls":12},"BV - Bouvet Island"]
[{"$nulls":12},"BW - Botswana"]
[{"$nulls":12},"BY - Belarus"]
[{"$nulls":12},"BZ - Belize"]
["Signal processing",{"$nulls":11},"CA - Canada"]
[{"$nulls":12},"CC - Cocos (Keeling) Islands"]
[{"$nulls":12},"CD - Congo, Democratic Republic of the"]
[{"$nulls":12},"CF - Central African Republic"]
[{"$nulls":12},"CG - Congo"]
[{"$nulls":12},"CH - Switzerland"]
[{"$nulls":12},"CI - Côte d'Ivoire"]
[{"$nulls":12},"CK - Cook Islands"]
[{"$nulls":12},"CL - Chile"]
[{"$nulls":12},"CM - Cameroon"]
["Hardware programming",{"$nulls":12},"CN - China"]
[{"$nulls":12},"NR - Nauru"]
[{"$nulls":13},"NU - Niue",{"$nulls":4},"NU - Niue"]
[{"$nulls":13},"NZ - New Zealand",{"$nulls":4},"NZ - New Zealand"]
[{"$nulls":13},"OM - Oman",{"$nulls":4},"OM - Oman"]
[{"$nulls":13},"PA - Panama",{"$nulls":4},"PA - Panama"]
[{"$nulls":13},"PE - Peru",{"$nulls":4},"PE - Peru"]
[{"$nulls":13},"PF - French Polynesia",{"$nulls":4},"PF - French Polynesia"]
[{"$nulls":13},"PG - Papua New Guinea",{"$nulls":4},"PG - Papua New Guinea"]
[{"$nulls":13},"PH - Philippines",{"$nulls":4},"PH - Philippines"]
["Basic electronics",{"$nulls":12},"PK - Pakistan",{"$nulls":4},"PK - Pakistan"]
[{"$nulls":13},"PL - Poland",{"$nulls":4},"PL - Poland"]
[{"$nulls":13},"PM - Saint Pierre and Miquelon",{"$nulls":4},"PM - Saint Pierre and Miquelon"]
[{"$nulls":13},"PN - Pitcairn",{"$nulls":4},"PN - Pitcairn"]
[{"$nulls":13},"PR - Puerto Rico",{"$nulls":4},"PR - Puerto Rico"]
[{"$nulls":13},"PS - Palestine, State of",{"$nulls":4},"PS - Palestine, State of"]
[{"$nulls":13},"PT - Portugal",{"$nulls":4},"PT - Portugal"]
[{"$nulls":13},"PW - Palau",{"$nulls":4},"PW - Palau"]
[{"$nulls":13},"PY - Paraguay",{"$nulls":4},"PY - Paraguay"]
[{"$nulls":13},"QA - Qatar",{"$nulls":4},"QA - Qatar"]
[{"$nulls":13},"RE - Réunion",{"$nulls":4},"RE - Réunion"]
[{"$nulls":13},"RO - Romania",{"$nulls":4},"RO - Romania"]
[{"$nulls":25},"TK - Tokelau"]
[{"$nulls":25},"TL - Timor-Leste"]
[{"$nulls":25},"TM - Turkmenistan"]
[{"$nulls":25},"TN - Tunisia"]
[{"$nulls":25},"TO - Tonga"]
[{"$nulls":25},"TR - Turkey"]
[{"$nulls":25},"TT - Trinidad and Tobago"]
[{"$nulls":25},"TV - Tuvalu"]
[{"$nulls":25},"TW - Taiwan, Province of China"]
[{"$nulls":25},"TZ - Tanzania, United Republic of"]
[{"$nulls":25},"UA - Ukraine"]
[{"$nulls":25},"UG - Uganda"]
[{"$nulls":25},"UM - United States Minor Outlying Islands"]
[{"$nulls":25},"US - United States of America"]
[{"$nulls":25},"UY - Uruguay"]
[{"$nulls":25},"UZ - Uzbekistan"]
[{"$nulls":25},"VA - Holy See"]
[{"$nulls":25},"VC - Saint Vincent and the Grenadines"]
[{"$nulls":25},"VE - Venezuela (Bolivarian Republic of)"]
[{"$nulls":25},"VG - Virgin Islands (British)"]
[{"$nulls":25},"VI - Virgin Islands (U.S.)"]
[{"$nulls":25},"VN - Viet Nam"]
[{"$nulls":25},"VU - Vanuatu"]
[{"$nulls":25},"WF - Wallis and Futuna"]
[{"$nulls":25},"WS - Samoa"]
[{"$nulls":25},"YE - Yemen"]
[{"$nulls":25},"YT - Mayotte"]
[{"$nulls":25},"ZA - South Africa"]
[{"$nulls":25},"ZM - Zambia"]
[{"$nulls":25},"ZW - Zimbabwe"]

{"sheet":"Other relevant information","index":3,"n_rows":14,"n_cols":3,"rows_kept":14,"merged":[[0,0,1,10],[2,0,3,10],[5,0,6,0],[5,2,5,10],[6,1,6,10],[9,0,10,0],[9,2,9,10],[10,1,10,10],[13,0,14,0],[13,2,13,10],[14,1,14,10]]}
["Other relevant information"]
[]
["-In this sheet you are supposed to provide other relevant information about your background\n- FOR THE INFORMATION ON \"Signs of academic excellence\" AND \"Study related work\", THE MINIMUM LEVEL REQUIRED IS BACHELOR\n- If you say Yes to the categories below, then submit the relevant documents in the application"]
[]
["Signs of academic excellence","Select an option below "]
["Do you have any Research experience/ Publications/ Awards ?",null,"List all the relevant infromation about your academic excellence\n(Write like:   Year    |   Category (Research exp, award,etc.)   |  Description)"]
[]
[]
["Study related work","Select an option below "]
["Do you have a study-related job?\n(OR Have you had)\n(e.g.: Industry working experience/ Internships/ Projects within Industry)",null,"List all the relevant infromation about your academic excellence\n(Write like:   Year and duration   |   Category (Internship, Project, etc.)   |  Description)"]
[]
[]
["GRE","Select an option below "]
["Have you taken a GRE ?",null,"List all the relevant infromation about your academic excellence. Make sure to upload the GRE to DANS.\n(Write like:   Year    |   Result  )"]

{"sheet":"SOP","index":4,"n_rows":61,"n_cols":9,"rows_kept":61,"merged":[[0,0,0,9],[1,0,1,9],[2,0,5,9],[7,1,7,9],[8,1,8,9],[9,1,9,9],[10,1,10,9],[12,7,12,8],[13,4,13,9],[15,0,15,9],[16,0,28,9],[30,0,30,9],[31,0,32,0],[31,1,32,1],[31,2,32,3],[31,4,32,9],[33,1,33,9],[34,1,34,9],[37,0,37,3],[37,4,37,9],[38,0,45,9],[49,0,56,9],[61,0,68,9]]}
["Statement of Purpose"]
[]
["It is mandatory to submit a statement of purpose and it is a key document in the decision making process. It is therefore extremely important that you give considerable thought towards preparing the SOP. \nBe as concise and clear as possible.  \nNo separate SOP files will be considered. If you are applying for more than one programmes, prepare a SOP for each template.\n\nBelow you will find a form where you must fill in the relevant information. Fields marked with (*), are mandatory and must be filled."]
[]
[]
[]
[]
["Name:",{"$f":"GPA!B10","v":0}]
["Country of University:",{"$f":"GPA!B11","v":0}]
["Name of University:",{"$f":"GPA!B12","v":0}]
["Title of Bachelor degree:",{"$f":"GPA!B15","v":0}]
[]
[]
["Your plan for the future and motivation to study at DTU",{"$nulls":3},{"$f":"IF(ISBLANK(A17)=TRUE,\"THIS AREA IS MANDATORY; you must fill it out.\",\"\")","v":""}]
[]
["State your future academic goals and how your study at DTU will help you achieve these (max. 1000 characters): *"]
["State your future academic goals and how your study at DTU will help you achieve these (max. 1000 characters): *"]
{"$rows_empty":13}
["Select two courses/subjects (at MSc level) from the DTU course catalogue which you plan to take:"]
["Course/Subject number*","Course/Subject name*",null,null,{"$f":"IF(OR(ISBLANK(A34)=TRUE,ISBLANK(B34)=TRUE,ISBLANK(A35)=TRUE,ISBLANK(B35)=TRUE),\"THIS AREA IS MANDATORY; you must fill it out.\",\"\")","v":"THIS AREA IS MANDATORY; you must fill it out."}]
[]
[]
[]
["Find Courses at: ","http://kurser.dtu.dk/"]
[]
["Describe how these courses/subjects support your academic goals (max. 500 characters): *",{"$nulls":3},{"$f":"IF(ISBLANK(A39)=TRUE,\"THIS AREA IS MANDATORY; you must fill it out.\",\"\")","v":"THIS AREA IS MANDATORY; you must fill it out."}]
{"$rows_empty":10}
["Other relevant information for your admission at DTU (if applicable)"]
{"$rows_empty":10}
["Have you applied to DTU before (if applicable) – ",{"$nulls":7},"Yes/No:"]
["If rejected: explain how you have upgraded your qualifications since then (max. 500 characters)"]

{"sheet":"Pre-mapping","index":5,"n_rows":31,"n_cols":17,"rows_kept":31,"hidden":true,"merged":[[0,0,0,9],[1,0,1,9],[3,0,3,9],[4,0,4,9],[6,0,6,9],[7,0,7,9],[8,0,8,9],[9,0,9,9],[11,0,11,9],[14,0,14,9],[15,0,15,1],[15,2,15,5],[15,6,15,9],[16,0,16,1],[16,2,16,5],[16,6,16,9],[17,0,17,1],[17,2,17,5],[17,6,17,9],[18,0,18,1],[18,2,18,5],[18,6,18,9],[19,0,19,1],[19,2,19,5],[19,6,19,9],[20,0,20,1],[20,2,20,5],[20,6,20,9],[21,0,21,1],[21,2,21,5],[21,6,21,9],[21,14,21,15],[21,16,21,19],[21,20,21,23],[22,14,22,15],[22,16,22,19],[22,20,22,23],[23,0,23,9],[24,0,24,1],[24,2,24,5],[24,6,24,9],[24,14,24,23],[25,0,25,1],[25,2,25,5],[25,6,25,9],[25,14,25,15],[25,16,25,19],[25,20,25,23],[26,0,26,1],[26,2,26,5],[26,6,26,9],[26,14,26,15],[26,16,26,19],[26,20,26,23],[27,0,27,1],[27,2,27,5],[27,6,27,9],[27,14,27,15],[27,16,27,19],[27,20,27,23],[27,30,27,39],[28,0,28,1],[28,2,28,5],[28,6,28,9],[28,30,28,31],[28,32,28,35],[28,36,28,39],[29,14,29,15],[29,16,29,19],[29,20,29,23],[30,0,30,9],[30,14,30,15],[30,16,30,19],[30,20,30,23],[30,30,30,39],[31,0,31,9],[31,14,31,15],[31,16,31,19],[31,20,31,23],[31,30,31,31],[31,32,31,35],[31,36,31,39],[32,30,32,31],[32,32,32,35],[32,36,32,39],[33,30,33,31],[33,32,33,35],[33,36,33,39],[35,30,35,39],[36,30,36,31],[36,32,36,35],[36,36,36,39],[37,30,37,31],[37,32,37,35],[37,36,37,39],[38,30,38,31],[38,32,38,35],[38,36,38,39],[39,30,39,31],[39,32,39,35],[39,36,39,39]]}
["Pre-mapping of Studies (Sheet 3 of 3)"]
["Human-Centered Artifical Intelligence"]
[]
["Full name of the applicant"]
[{"$f":"#REF!","v":{"$error":"#REF!"}}]
[]
["University name"]
[{"$f":"#REF!","v":{"$error":"#REF!"}},{"$nulls":15},"Linear algebra (Vectors, Matrices, Eigenvalues, …) "]
["Country of your university",{"$nulls":15},"First and Second Order Differential equations (Ordinary & partial)"]
[{"$f":"#REF!","v":{"$error":"#REF!"}},{"$nulls":15},"nth Order Differential equations (Transfer Function, Homogeneous, Linear, Inhomogeneous, Stability, ...) "]
[{"$nulls":16},"Series (Convergence of Infinite, Approximation, Fourier, ...) "]
["The following table is used in the assessment of your application to see how you fulfil the academic prerequisites for the specific MSc programme.\n\nFill in the tables below with courses from your qualifying education or qualifications obtained in other ways as good, precise, and concise as possible. Note that you might need to write the same course/subject more than once. \n\nYou will most likely not have courses/subjects or qualifications in all areas and that is ok, just leave the field blank. You might also have courses/subjects, which does not fit in the scheme, please leave them out. If you have obtained other academic competences you believe are relevant for your study at DTU, please use the last box to describe these shortly.",{"$nulls":15},"Discrete Mathematics (Boolean Expressions, Sets, Logic, Canonical Forms, Proof, Induction, Recursion, ...) "]
[{"$nulls":16},"Statistics and Probability \n(Distributions, Model Parameters, Confidence Intervals, Regression Analysis,…) "]
[{"$nulls":16},"Programming (Imperative, Object Oriented, Functional, Design Patterns, Run-Time Analysis, Language Syntax, Program Structures, ...) "]
["Engineering Mathematics, Statistics and Probability: ",{"$nulls":15},"Algorithms and Data Structures (Algorithmic Descriptions, Correctness, Asymptotic Notation, Stacks, Queues, Lists, Hash Tables, ..) "]
["Topic",null,"How do you fulfil the academic requirements  \nMention the Course/subject name and number from your academic transcript\n(minimum academic level has to be bachelors)",{"$nulls":3},"Comments (if applicable)\nMax. 150 characters",{"$nulls":9},"Software Engineering \n(Requirements, System Design, Design Patterns, UML, Testing, Project Phases, ...) "]
["Linear algebra (Vectors, Matrices, Eigenvalues, …) ",{"$nulls":15},"Numerical Algorithms and Mathematical Computation \n(Iteration, Convergence, Efficiency, Accuracy, Truncation and Rounding, Interpolation, Numerical Integration, Matlab, Data Preparation...) "]
["First and Second Order Differential equations (Ordinary & partial)"]
["nth Order Differential equations (Transfer Function, Homogeneous, Linear, Inhomogeneous, Stability, ...) "]
["Series (Convergence of Infinite, Approximation, Fourier, ...) "]
["Discrete Mathematics (Boolean Expressions, Sets, Logic, Canonical Forms, Proof, Induction, Recursion, ...) "]
["Statistics and Probability \n(Distributions, Model Parameters, Confidence Intervals, Regression Analysis,…) "]
[]
["Software Engineering and Programming: "]
["Topic",null,"How do you fulfil the academic requirements  \nMention the Course/subject name and number from your academic transcript\n(minimum academic level has to be bachelors)",{"$nulls":3},"Comments (if applicable)\nMax. 150 characters"]
["Programming (Imperative, Object Oriented, Functional, Design Patterns, Run-Time Analysis, Language Syntax, Program Structures, ...) "]
["Algorithms and Data Structures (Algorithmic Descriptions, Correctness, Asymptotic Notation, Stacks, Queues, Lists, Hash Tables, ..) "]
["Software Engineering \n(Requirements, System Design, Design Patterns, UML, Testing, Project Phases, ...) "]
["Numerical Algorithms and Mathematical Computation \n(Iteration, Convergence, Efficiency, Accuracy, Truncation and Rounding, Interpolation, Numerical Integration, Matlab, Data Preparation...) "]
[]
["Other relevant academic competence/information\n (max. 500 characters):"]

{"sheet":"English","index":6,"n_rows":15,"n_cols":1,"rows_kept":15,"merged":[[0,0,1,10],[2,0,2,10],[3,0,3,10],[5,1,5,10],[6,1,6,10],[8,1,8,10],[9,1,9,10],[11,1,11,10],[12,1,12,10],[14,1,14,10]]}
["English language documentation"]
[]
["- Please fill in the below section regarding your English language certificate\n- Note that the DTU TOEFL-code is 1684\n"]
["- Click here for more information on the DTU language requirements\n"]
["Language test information"]
["TOEFL - Internet-based:"]
["Appointment Number / Registration number:"]
[]
["IELTS Academic:"]
["Test Reference Number (TRF):  *no spaces"]
[]
["C1 Advanced / Cambridge Advanced English (CAE):"]
["Reference Number:"]
[]
["I fulfill the English requirements, without the need for an English test:"]

{"sheet":"Countries","index":7,"n_rows":250,"n_cols":10,"rows_kept":250,"hidden":true}
[null,"Countries",{"$f":"COUNTIF(D2:D250,\"?*\")","v":0}]
[{"$f":"IF(ISNUMBER(FIND(#REF!,B2:B250)),MAX(A$1:$A1)+1,0)","v":0},"AD - Andorra",{"$f":"OFFSET($D$2,,,COUNTIF($D$2:$D$250,\"?*\"))","v":{"$error":"#REF!"}},{"$f":"IFERROR(VLOOKUP(ROWS($D$2:D2),$A$2:$B$250,2,0),\"\")","v":""}]
[{"$f":"IF(ISNUMBER(FIND(#REF!,B3:B251)),MAX(A$1:$A2)+1,0)","v":0},"AE - United Arab Emirates",null,{"$f":"IFERROR(VLOOKUP(ROWS($D$2:D3),$A$2:$B$250,2,0),\"\")","v":""}]
[{"$f":"IF(ISNUMBER(FIND(#REF!,B4:B252)),MAX(A$1:$A3)+1,0)","v":0},"AF - Afghanistan",null,{"$f":"IFERROR(VLOOKUP(ROWS($D$2:D4),$A$2:$B$250,2,0),\"\")","v":""}]
[{"$f":"IF(ISNUMBER(FIND(#REF!,B5:B253)),MAX(A$1:$A4)+1,0)","v":0},"AG - Antigua and Barbuda",null,{"$f":"IFERROR(VLOOKUP(ROWS($D$2:D5),$A$2:$B$250,2,0),\"\")","v":""}]
[{"$f":"IF(ISNUMBER(FIND(#REF!,B6:B254)),MAX(A$1:$A5)+1,0)","v":0},"AI - Anguilla",null,{"$f":"IFERROR(VLOOKUP(ROWS($D$2:D6),$A$2:$B$250,2,0),\"\")","v":""}]
[{"$f":"IF(ISNUMBER(FIND(#REF!,B7:B255)),MAX(A$1:$A6)+1,0)","v":0},"AL - Albania",null,{"$f":"IFERROR(VLOOKUP(ROWS($D$2:D7),$A$2:$B$250,2,0),\"\")","v":""}]
[{"$f":"IF(ISNUMBER(FIND(#REF!,B8:B256)),MAX(A$1:$A7)+1,0)","v":0},"AM - Armenia",null,{"$f":"IFERROR(VLOOKUP(ROWS($D$2:D8),$A$2:$B$250,2,0),\"\")","v":""}]
[{"$f":"IF(ISNUMBER(FIND(#REF!,B9:B257)),MAX(A$1:$A8)+1,0)","v":0},"AO - Angola",null,{"$f":"IFERROR(VLOOKUP(ROWS($D$2:D9),$A$2:$B$250,2,0),\"\")","v":""}]
[{"$f":"IF(ISNUMBER(FIND(#REF!,B10:B258)),MAX(A$1:$A9)+1,0)","v":0},"AQ - Antarctica",null,{"$f":"IFERROR(VLOOKUP(ROWS($D$2:D10),$A$2:$B$250,2,0),\"\")","v":""}]
[{"$f":"IF(ISNUMBER(FIND(#REF!,B11:B259)),MAX(A$1:$A10)+1,0)","v":0},"AR - Argentina",null,{"$f":"IFERROR(VLOOKUP(ROWS($D$2:D11),$A$2:$B$250,2,0),\"\")","v":""}]
[{"$f":"IF(ISNUMBER(FIND(#REF!,B12:B260)),MAX(A$1:$A11)+1,0)","v":0},"AS - American Samoa",null,{"$f":"IFERROR(VLOOKUP(ROWS($D$2:D12),$A$2:$B$250,2,0),\"\")","v":""}]
[{"$f":"IF(ISNUMBER(FIND(#REF!,B13:B261)),MAX(A$1:$A12)+1,0)","v":0},"AT - Austria",null,{"$f":"IFERROR(VLOOKUP(ROWS($D$2:D13),$A$2:$B$250,2,0),\"\")","v":""}]
[{"$f":"IF(ISNUMBER(FIND(#REF!,B14:B262)),MAX(A$1:$A13)+1,0)","v":0},"AU - Australia",null,{"$f":"IFERROR(VLOOKUP(ROWS($D$2:D14),$A$2:$B$250,2,0),\"\")","v":""}]
[{"$f":"IF(ISNUMBER(FIND(#REF!,B15:B263)),MAX(A$1:$A14)+1,0)","v":0},"AW - Aruba",null,{"$f":"IFERROR(VLOOKUP(ROWS($D$2:D15),$A$2:$B$250,2,0),\"\")","v":""}]
[{"$f":"IF(ISNUMBER(FIND(#REF!,B16:B264)),MAX(A$1:$A15)+1,0)","v":0},"AX - Åland Islands",null,{"$f":"IFERROR(VLOOKUP(ROWS($D$2:D16),$A$2:$B$250,2,0),\"\")","v":""}]
[{"$f":"IF(ISNUMBER(FIND(#REF!,B17:B265)),MAX(A$1:$A16)+1,0)","v":0},"AZ - Azerbaijan",null,{"$f":"IFERROR(VLOOKUP(ROWS($D$2:D17),$A$2:$B$250,2,0),\"\")","v":""}]
[{"$f":"IF(ISNUMBER(FIND(#REF!,B18:B266)),MAX(A$1:$A17)+1,0)","v":0},"BA - Bosnia and Herzegovina",null,{"$f":"IFERROR(VLOOKUP(ROWS($D$2:D18),$A$2:$B$250,2,0),\"\")","v":""},{"$nulls":5},"Yes"]
[{"$f":"IF(ISNUMBER(FIND(#REF!,B19:B267)),MAX(A$1:$A18)+1,0)","v":0},"BB - Barbados",null,{"$f":"IFERROR(VLOOKUP(ROWS($D$2:D19),$A$2:$B$250,2,0),\"\")","v":""},{"$nulls":5},"No"]
[{"$f":"IF(ISNUMBER(FIND(#REF!,B20:B268)),MAX(A$1:$A19)+1,0)","v":0},"BD - Bangladesh",null,{"$f":"IFERROR(VLOOKUP(ROWS($D$2:D20),$A$2:$B$250,2,0),\"\")","v":""}]
[{"$f":"IF(ISNUMBER(FIND(#REF!,B21:B269)),MAX(A$1:$A20)+1,0)","v":0},"BE - Belgium",null,{"$f":"IFERROR(VLOOKUP(ROWS($D$2:D21),$A$2:$B$250,2,0),\"\")","v":""}]
[{"$f":"IF(ISNUMBER(FIND(#REF!,B22:B270)),MAX(A$1:$A21)+1,0)","v":0},"BF - Burkina Faso",null,{"$f":"IFERROR(VLOOKUP(ROWS($D$2:D22),$A$2:$B$250,2,0),\"\")","v":""}]
[{"$f":"IF(ISNUMBER(FIND(#REF!,B23:B271)),MAX(A$1:$A22)+1,0)","v":0},"BG - Bulgaria",null,{"$f":"IFERROR(VLOOKUP(ROWS($D$2:D23),$A$2:$B$250,2,0),\"\")","v":""}]
[{"$f":"IF(ISNUMBER(FIND(#REF!,B24:B272)),MAX(A$1:$A23)+1,0)","v":0},"BH - Bahrain",null,{"$f":"IFERROR(VLOOKUP(ROWS($D$2:D24),$A$2:$B$250,2,0),\"\")","v":""}]
[{"$f":"IF(ISNUMBER(FIND(#REF!,B25:B273)),MAX(A$1:$A24)+1,0)","v":0},"BI - Burundi",null,{"$f":"IFERROR(VLOOKUP(ROWS($D$2:D25),$A$2:$B$250,2,0),\"\")","v":""}]
[{"$f":"IF(ISNUMBER(FIND(#REF!,B26:B274)),MAX(A$1:$A25)+1,0)","v":0},"BJ - Benin",null,{"$f":"IFERROR(VLOOKUP(ROWS($D$2:D26),$A$2:$B$250,2,0),\"\")","v":""}]
[{"$f":"IF(ISNUMBER(FIND(#REF!,B27:B275)),MAX(A$1:$A26)+1,0)","v":0},"BL - Saint Barthélemy",null,{"$f":"IFERROR(VLOOKUP(ROWS($D$2:D27),$A$2:$B$250,2,0),\"\")","v":""}]
[{"$f":"IF(ISNUMBER(FIND(#REF!,B28:B276)),MAX(A$1:$A27)+1,0)","v":0},"BM - Bermuda",null,{"$f":"IFERROR(VLOOKUP(ROWS($D$2:D28),$A$2:$B$250,2,0),\"\")","v":""}]
[{"$f":"IF(ISNUMBER(FIND(#REF!,B29:B277)),MAX(A$1:$A28)+1,0)","v":0},"BN - Brunei Darussalam",null,{"$f":"IFERROR(VLOOKUP(ROWS($D$2:D29),$A$2:$B$250,2,0),\"\")","v":""}]
[{"$f":"IF(ISNUMBER(FIND(#REF!,B30:B278)),MAX(A$1:$A29)+1,0)","v":0},"BO - Bolivia (Plurinational State of)",null,{"$f":"IFERROR(VLOOKUP(ROWS($D$2:D30),$A$2:$B$250,2,0),\"\")","v":""}]
[{"$f":"IF(ISNUMBER(FIND(#REF!,B31:B279)),MAX(A$1:$A30)+1,0)","v":0},"BQ - Bonaire, Sint Eustatius and Saba",null,{"$f":"IFERROR(VLOOKUP(ROWS($D$2:D31),$A$2:$B$250,2,0),\"\")","v":""}]
[{"$f":"IF(ISNUMBER(FIND(#REF!,B32:B280)),MAX(A$1:$A31)+1,0)","v":0},"BR - Brazil",null,{"$f":"IFERROR(VLOOKUP(ROWS($D$2:D32),$A$2:$B$250,2,0),\"\")","v":""}]
[{"$f":"IF(ISNUMBER(FIND(#REF!,B33:B281)),MAX(A$1:$A32)+1,0)","v":0},"BS - Bahamas",null,{"$f":"IFERROR(VLOOKUP(ROWS($D$2:D33),$A$2:$B$250,2,0),\"\")","v":""}]
[{"$f":"IF(ISNUMBER(FIND(#REF!,B34:B282)),MAX(A$1:$A33)+1,0)","v":0},"BT - Bhutan",null,{"$f":"IFERROR(VLOOKUP(ROWS($D$2:D34),$A$2:$B$250,2,0),\"\")","v":""}]
[{"$f":"IF(ISNUMBER(FIND(#REF!,B35:B283)),MAX(A$1:$A34)+1,0)","v":0},"BV - Bouvet Island",null,{"$f":"IFERROR(VLOOKUP(ROWS($D$2:D35),$A$2:$B$250,2,0),\"\")","v":""}]
[{"$f":"IF(ISNUMBER(FIND(#REF!,B36:B284)),MAX(A$1:$A35)+1,0)","v":0},"BW - Botswana",null,{"$f":"IFERROR(VLOOKUP(ROWS($D$2:D36),$A$2:$B$250,2,0),\"\")","v":""}]
[{"$f":"IF(ISNUMBER(FIND(#REF!,B37:B285)),MAX(A$1:$A36)+1,0)","v":0},"BY - Belarus",null,{"$f":"IFERROR(VLOOKUP(ROWS($D$2:D37),$A$2:$B$250,2,0),\"\")","v":""}]
[{"$f":"IF(ISNUMBER(FIND(#REF!,B38:B286)),MAX(A$1:$A37)+1,0)","v":0},"BZ - Belize",null,{"$f":"IFERROR(VLOOKUP(ROWS($D$2:D38),$A$2:$B$250,2,0),\"\")","v":""}]
[{"$f":"IF(ISNUMBER(FIND(#REF!,B39:B287)),MAX(A$1:$A38)+1,0)","v":0},"CA - Canada",null,{"$f":"IFERROR(VLOOKUP(ROWS($D$2:D39),$A$2:$B$250,2,0),\"\")","v":""}]
[{"$f":"IF(ISNUMBER(FIND(#REF!,B40:B288)),MAX(A$1:$A39)+1,0)","v":0},"CC - Cocos (Keeling) Islands",null,{"$f":"IFERROR(VLOOKUP(ROWS($D$2:D40),$A$2:$B$250,2,0),\"\")","v":""}]
[{"$f":"IF(ISNUMBER(FIND(#REF!,B41:B289)),MAX(A$1:$A40)+1,0)","v":0},"CD - Congo, Democratic Republic of the",null,{"$f":"IFERROR(VLOOKUP(ROWS($D$2:D41),$A$2:$B$250,2,0),\"\")","v":""}]
[{"$f":"IF(ISNUMBER(FIND(#REF!,B42:B290)),MAX(A$1:$A41)+1,0)","v":0},"CF - Central African Republic",null,{"$f":"IFERROR(VLOOKUP(ROWS($D$2:D42),$A$2:$B$250,2,0),\"\")","v":""}]
[{"$f":"IF(ISNUMBER(FIND(#REF!,B43:B291)),MAX(A$1:$A42)+1,0)","v":0},"CG - Congo",null,{"$f":"IFERROR(VLOOKUP(ROWS($D$2:D43),$A$2:$B$250,2,0),\"\")","v":""}]
[{"$f":"IF(ISNUMBER(FIND(#REF!,B44:B292)),MAX(A$1:$A43)+1,0)","v":0},"CH - Switzerland",null,{"$f":"IFERROR(VLOOKUP(ROWS($D$2:D44),$A$2:$B$250,2,0),\"\")","v":""}]
[{"$f":"IF(ISNUMBER(FIND(#REF!,B45:B293)),MAX(A$1:$A44)+1,0)","v":0},"CI - Côte d'Ivoire",null,{"$f":"IFERROR(VLOOKUP(ROWS($D$2:D45),$A$2:$B$250,2,0),\"\")","v":""}]
[{"$f":"IF(ISNUMBER(FIND(#REF!,B46:B294)),MAX(A$1:$A45)+1,0)","v":0},"CK - Cook Islands",null,{"$f":"IFERROR(VLOOKUP(ROWS($D$2:D46),$A$2:$B$250,2,0),\"\")","v":""}]
[{"$f":"IF(ISNUMBER(FIND(#REF!,B47:B295)),MAX(A$1:$A46)+1,0)","v":0},"CL - Chile",null,{"$f":"IFERROR(VLOOKUP(ROWS($D$2:D47),$A$2:$B$250,2,0),\"\")","v":""}]
[{"$f":"IF(ISNUMBER(FIND(#REF!,B48:B296)),MAX(A$1:$A47)+1,0)","v":0},"CM - Cameroon",null,{"$f":"IFERROR(VLOOKUP(ROWS($D$2:D48),$A$2:$B$250,2,0),\"\")","v":""}]
[{"$f":"IF(ISNUMBER(FIND(#REF!,B49:B297)),MAX(A$1:$A48)+1,0)","v":0},"CN - China",null,{"$f":"IFERROR(VLOOKUP(ROWS($D$2:D49),$A$2:$B$250,2,0),\"\")","v":""}]
[{"$f":"IF(ISNUMBER(FIND(#REF!,B50:B298)),MAX(A$1:$A49)+1,0)","v":0},"CO - Colombia",null,{"$f":"IFERROR(VLOOKUP(ROWS($D$2:D50),$A$2:$B$250,2,0),\"\")","v":""}]
[{"$f":"IF(ISNUMBER(FIND(#REF!,B51:B299)),MAX(A$1:$A50)+1,0)","v":0},"CR - Costa Rica",null,{"$f":"IFERROR(VLOOKUP(ROWS($D$2:D51),$A$2:$B$250,2,0),\"\")","v":""}]
[{"$f":"IF(ISNUMBER(FIND(#REF!,B52:B300)),MAX(A$1:$A51)+1,0)","v":0},"CU - Cuba",null,{"$f":"IFERROR(VLOOKUP(ROWS($D$2:D52),$A$2:$B$250,2,0),\"\")","v":""}]
[{"$f":"IF(ISNUMBER(FIND(#REF!,B53:B301)),MAX(A$1:$A52)+1,0)","v":0},"CV - Cabo Verde",null,{"$f":"IFERROR(VLOOKUP(ROWS($D$2:D53),$A$2:$B$250,2,0),\"\")","v":""}]
[{"$f":"IF(ISNUMBER(FIND(#REF!,B54:B302)),MAX(A$1:$A53)+1,0)","v":0},"CW - Curaçao",null,{"$f":"IFERROR(VLOOKUP(ROWS($D$2:D54),$A$2:$B$250,2,0),\"\")","v":""}]
[{"$f":"IF(ISNUMBER(FIND(#REF!,B55:B303)),MAX(A$1:$A54)+1,0)","v":0},"CX - Christmas Island",null,{"$f":"IFERROR(VLOOKUP(ROWS($D$2:D55),$A$2:$B$250,2,0),\"\")","v":""}]
[{"$f":"IF(ISNUMBER(FIND(#REF!,B56:B304)),MAX(A$1:$A55)+1,0)","v":0},"CY - Cyprus",null,{"$f":"IFERROR(VLOOKUP(ROWS($D$2:D56),$A$2:$B$250,2,0),\"\")","v":""}]
[{"$f":"IF(ISNUMBER(FIND(#REF!,B57:B305)),MAX(A$1:$A56)+1,0)","v":0},"CZ - Czechia",null,{"$f":"IFERROR(VLOOKUP(ROWS($D$2:D57),$A$2:$B$250,2,0),\"\")","v":""}]
[{"$f":"IF(ISNUMBER(FIND(#REF!,B58:B306)),MAX(A$1:$A57)+1,0)","v":0},"DE - Germany",null,{"$f":"IFERROR(VLOOKUP(ROWS($D$2:D58),$A$2:$B$250,2,0),\"\")","v":""}]
[{"$f":"IF(ISNUMBER(FIND(#REF!,B59:B307)),MAX(A$1:$A58)+1,0)","v":0},"DJ - Djibouti",null,{"$f":"IFERROR(VLOOKUP(ROWS($D$2:D59),$A$2:$B$250,2,0),\"\")","v":""}]
[{"$f":"IF(ISNUMBER(FIND(#REF!,B60:B308)),MAX(A$1:$A59)+1,0)","v":0},"DK - Denmark",null,{"$f":"IFERROR(VLOOKUP(ROWS($D$2:D60),$A$2:$B$250,2,0),\"\")","v":""}]
[{"$f":"IF(ISNUMBER(FIND(#REF!,B61:B309)),MAX(A$1:$A60)+1,0)","v":0},"DM - Dominica",null,{"$f":"IFERROR(VLOOKUP(ROWS($D$2:D61),$A$2:$B$250,2,0),\"\")","v":""}]
[{"$f":"IF(ISNUMBER(FIND(#REF!,B62:B310)),MAX(A$1:$A61)+1,0)","v":0},"DO - Dominican Republic",null,{"$f":"IFERROR(VLOOKUP(ROWS($D$2:D62),$A$2:$B$250,2,0),\"\")","v":""}]
[{"$f":"IF(ISNUMBER(FIND(#REF!,B63:B311)),MAX(A$1:$A62)+1,0)","v":0},"DZ - Algeria",null,{"$f":"IFERROR(VLOOKUP(ROWS($D$2:D63),$A$2:$B$250,2,0),\"\")","v":""}]
[{"$f":"IF(ISNUMBER(FIND(#REF!,B64:B312)),MAX(A$1:$A63)+1,0)","v":0},"EC - Ecuador",null,{"$f":"IFERROR(VLOOKUP(ROWS($D$2:D64),$A$2:$B$250,2,0),\"\")","v":""}]
[{"$f":"IF(ISNUMBER(FIND(#REF!,B65:B313)),MAX(A$1:$A64)+1,0)","v":0},"EE - Estonia",null,{"$f":"IFERROR(VLOOKUP(ROWS($D$2:D65),$A$2:$B$250,2,0),\"\")","v":""}]
[{"$f":"IF(ISNUMBER(FIND(#REF!,B66:B314)),MAX(A$1:$A65)+1,0)","v":0},"EG - Egypt",null,{"$f":"IFERROR(VLOOKUP(ROWS($D$2:D66),$A$2:$B$250,2,0),\"\")","v":""}]
[{"$f":"IF(ISNUMBER(FIND(#REF!,B67:B315)),MAX(A$1:$A66)+1,0)","v":0},"EH - Western Sahara",null,{"$f":"IFERROR(VLOOKUP(ROWS($D$2:D67),$A$2:$B$250,2,0),\"\")","v":""}]
[{"$f":"IF(ISNUMBER(FIND(#REF!,B68:B316)),MAX(A$1:$A67)+1,0)","v":0},"ER - Eritrea",null,{"$f":"IFERROR(VLOOKUP(ROWS($D$2:D68),$A$2:$B$250,2,0),\"\")","v":""}]
[{"$f":"IF(ISNUMBER(FIND(#REF!,B69:B317)),MAX(A$1:$A68)+1,0)","v":0},"ES - Spain",null,{"$f":"IFERROR(VLOOKUP(ROWS($D$2:D69),$A$2:$B$250,2,0),\"\")","v":""}]
[{"$f":"IF(ISNUMBER(FIND(#REF!,B70:B318)),MAX(A$1:$A69)+1,0)","v":0},"ET - Ethiopia",null,{"$f":"IFERROR(VLOOKUP(ROWS($D$2:D70),$A$2:$B$250,2,0),\"\")","v":""}]
[{"$f":"IF(ISNUMBER(FIND(#REF!,B71:B319)),MAX(A$1:$A70)+1,0)","v":0},"FI - Finland",null,{"$f":"IFERROR(VLOOKUP(ROWS($D$2:D71),$A$2:$B$250,2,0),\"\")","v":""}]
[{"$f":"IF(ISNUMBER(FIND(#REF!,B72:B320)),MAX(A$1:$A71)+1,0)","v":0},"FJ - Fiji",null,{"$f":"IFERROR(VLOOKUP(ROWS($D$2:D72),$A$2:$B$250,2,0),\"\")","v":""}]
[{"$f":"IF(ISNUMBER(FIND(#REF!,B73:B321)),MAX(A$1:$A72)+1,0)","v":0},"FK - Falkland Islands (Malvinas)",null,{"$f":"IFERROR(VLOOKUP(ROWS($D$2:D73),$A$2:$B$250,2,0),\"\")","v":""}]
[{"$f":"IF(ISNUMBER(FIND(#REF!,B74:B322)),MAX(A$1:$A73)+1,0)","v":0},"FM - Micronesia (Federated States of)",null,{"$f":"IFERROR(VLOOKUP(ROWS($D$2:D74),$A$2:$B$250,2,0),\"\")","v":""}]
[{"$f":"IF(ISNUMBER(FIND(#REF!,B75:B323)),MAX(A$1:$A74)+1,0)","v":0},"FO - Faroe Islands",null,{"$f":"IFERROR(VLOOKUP(ROWS($D$2:D75),$A$2:$B$250,2,0),\"\")","v":""}]
[{"$f":"IF(ISNUMBER(FIND(#REF!,B76:B324)),MAX(A$1:$A75)+1,0)","v":0},"FR - France",null,{"$f":"IFERROR(VLOOKUP(ROWS($D$2:D76),$A$2:$B$250,2,0),\"\")","v":""}]
[{"$f":"IF(ISNUMBER(FIND(#REF!,B77:B325)),MAX(A$1:$A76)+1,0)","v":0},"GA - Gabon",null,{"$f":"IFERROR(VLOOKUP(ROWS($D$2:D77),$A$2:$B$250,2,0),\"\")","v":""}]
[{"$f":"IF(ISNUMBER(FIND(#REF!,B78:B326)),MAX(A$1:$A77)+1,0)","v":0},"GB - United Kingdom of Great Britain and Northern Ireland",null,{"$f":"IFERROR(VLOOKUP(ROWS($D$2:D78),$A$2:$B$250,2,0),\"\")","v":""}]
[{"$f":"IF(ISNUMBER(FIND(#REF!,B79:B327)),MAX(A$1:$A78)+1,0)","v":0},"GD - Grenada",null,{"$f":"IFERROR(VLOOKUP(ROWS($D$2:D79),$A$2:$B$250,2,0),\"\")","v":""}]
[{"$f":"IF(ISNUMBER(FIND(#REF!,B80:B328)),MAX(A$1:$A79)+1,0)","v":0},"GE - Georgia",null,{"$f":"IFERROR(VLOOKUP(ROWS($D$2:D80),$A$2:$B$250,2,0),\"\")","v":""}]
[{"$f":"IF(ISNUMBER(FIND(#REF!,B81:B329)),MAX(A$1:$A80)+1,0)","v":0},"GF - French Guiana",null,{"$f":"IFERROR(VLOOKUP(ROWS($D$2:D81),$A$2:$B$250,2,0),\"\")","v":""}]
[{"$f":"IF(ISNUMBER(FIND(#REF!,B82:B330)),MAX(A$1:$A81)+1,0)","v":0},"GG - Guernsey",null,{"$f":"IFERROR(VLOOKUP(ROWS($D$2:D82),$A$2:$B$250,2,0),\"\")","v":""}]
[{"$f":"IF(ISNUMBER(FIND(#REF!,B83:B331)),MAX(A$1:$A82)+1,0)","v":0},"GH - Ghana",null,{"$f":"IFERROR(VLOOKUP(ROWS($D$2:D83),$A$2:$B$250,2,0),\"\")","v":""}]
[{"$f":"IF(ISNUMBER(FIND(#REF!,B84:B332)),MAX(A$1:$A83)+1,0)","v":0},"GI - Gibraltar",null,{"$f":"IFERROR(VLOOKUP(ROWS($D$2:D84),$A$2:$B$250,2,0),\"\")","v":""}]
[{"$f":"IF(ISNUMBER(FIND(#REF!,B85:B333)),MAX(A$1:$A84)+1,0)","v":0},"GL - Greenland",null,{"$f":"IFERROR(VLOOKUP(ROWS($D$2:D85),$A$2:$B$250,2,0),\"\")","v":""}]
[{"$f":"IF(ISNUMBER(FIND(#REF!,B86:B334)),MAX(A$1:$A85)+1,0)","v":0},"GM - Gambia",null,{"$f":"IFERROR(VLOOKUP(ROWS($D$2:D86),$A$2:$B$250,2,0),\"\")","v":""}]
[{"$f":"IF(ISNUMBER(FIND(#REF!,B87:B335)),MAX(A$1:$A86)+1,0)","v":0},"GN - Guinea",null,{"$f":"IFERROR(VLOOKUP(ROWS($D$2:D87),$A$2:$B$250,2,0),\"\")","v":""}]
[{"$f":"IF(ISNUMBER(FIND(#REF!,B88:B336)),MAX(A$1:$A87)+1,0)","v":0},"GP - Guadeloupe",null,{"$f":"IFERROR(VLOOKUP(ROWS($D$2:D88),$A$2:$B$250,2,0),\"\")","v":""}]
[{"$f":"IF(ISNUMBER(FIND(#REF!,B89:B337)),MAX(A$1:$A88)+1,0)","v":0},"GQ - Equatorial Guinea",null,{"$f":"IFERROR(VLOOKUP(ROWS($D$2:D89),$A$2:$B$250,2,0),\"\")","v":""}]
[{"$f":"IF(ISNUMBER(FIND(#REF!,B90:B338)),MAX(A$1:$A89)+1,0)","v":0},"GR - Greece",null,{"$f":"IFERROR(VLOOKUP(ROWS($D$2:D90),$A$2:$B$250,2,0),\"\")","v":""}]
[{"$f":"IF(ISNUMBER(FIND(#REF!,B91:B339)),MAX(A$1:$A90)+1,0)","v":0},"GS - South Georgia and the South Sandwich Islands",null,{"$f":"IFERROR(VLOOKUP(ROWS($D$2:D91),$A$2:$B$250,2,0),\"\")","v":""}]
[{"$f":"IF(ISNUMBER(FIND(#REF!,B92:B340)),MAX(A$1:$A91)+1,0)","v":0},"GT - Guatemala",null,{"$f":"IFERROR(VLOOKUP(ROWS($D$2:D92),$A$2:$B$250,2,0),\"\")","v":""}]
[{"$f":"IF(ISNUMBER(FIND(#REF!,B93:B341)),MAX(A$1:$A92)+1,0)","v":0},"GU - Guam",null,{"$f":"IFERROR(VLOOKUP(ROWS($D$2:D93),$A$2:$B$250,2,0),\"\")","v":""}]
[{"$f":"IF(ISNUMBER(FIND(#REF!,B94:B342)),MAX(A$1:$A93)+1,0)","v":0},"GW - Guinea-Bissau",null,{"$f":"IFERROR(VLOOKUP(ROWS($D$2:D94),$A$2:$B$250,2,0),\"\")","v":""}]
[{"$f":"IF(ISNUMBER(FIND(#REF!,B95:B343)),MAX(A$1:$A94)+1,0)","v":0},"GY - Guyana",null,{"$f":"IFERROR(VLOOKUP(ROWS($D$2:D95),$A$2:$B$250,2,0),\"\")","v":""}]
[{"$f":"IF(ISNUMBER(FIND(#REF!,B96:B344)),MAX(A$1:$A95)+1,0)","v":0},"HK - Hong Kong",null,{"$f":"IFERROR(VLOOKUP(ROWS($D$2:D96),$A$2:$B$250,2,0),\"\")","v":""}]
[{"$f":"IF(ISNUMBER(FIND(#REF!,B97:B345)),MAX(A$1:$A96)+1,0)","v":0},"HM - Heard Island and McDonald Islands",null,{"$f":"IFERROR(VLOOKUP(ROWS($D$2:D97),$A$2:$B$250,2,0),\"\")","v":""}]
[{"$f":"IF(ISNUMBER(FIND(#REF!,B98:B346)),MAX(A$1:$A97)+1,0)","v":0},"HN - Honduras",null,{"$f":"IFERROR(VLOOKUP(ROWS($D$2:D98),$A$2:$B$250,2,0),\"\")","v":""}]
[{"$f":"IF(ISNUMBER(FIND(#REF!,B99:B347)),MAX(A$1:$A98)+1,0)","v":0},"HR - Croatia",null,{"$f":"IFERROR(VLOOKUP(ROWS($D$2:D99),$A$2:$B$250,2,0),\"\")","v":""}]
[{"$f":"IF(ISNUMBER(FIND(#REF!,B100:B348)),MAX(A$1:$A99)+1,0)","v":0},"HT - Haiti",null,{"$f":"IFERROR(VLOOKUP(ROWS($D$2:D100),$A$2:$B$250,2,0),\"\")","v":""}]
[{"$f":"IF(ISNUMBER(FIND(#REF!,B101:B349)),MAX(A$1:$A100)+1,0)","v":0},"HU - Hungary",null,{"$f":"IFERROR(VLOOKUP(ROWS($D$2:D101),$A$2:$B$250,2,0),\"\")","v":""}]
[{"$f":"IF(ISNUMBER(FIND(#REF!,B102:B350)),MAX(A$1:$A101)+1,0)","v":0},"ID - Indonesia",null,{"$f":"IFERROR(VLOOKUP(ROWS($D$2:D102),$A$2:$B$250,2,0),\"\")","v":""}]
[{"$f":"IF(ISNUMBER(FIND(#REF!,B103:B351)),MAX(A$1:$A102)+1,0)","v":0},"IE - Ireland",null,{"$f":"IFERROR(VLOOKUP(ROWS($D$2:D103),$A$2:$B$250,2,0),\"\")","v":""}]
[{"$f":"IF(ISNUMBER(FIND(#REF!,B104:B352)),MAX(A$1:$A103)+1,0)","v":0},"IL - Israel",null,{"$f":"IFERROR(VLOOKUP(ROWS($D$2:D104),$A$2:$B$250,2,0),\"\")","v":""}]
[{"$f":"IF(ISNUMBER(FIND(#REF!,B105:B353)),MAX(A$1:$A104)+1,0)","v":0},"IM - Isle of Man",null,{"$f":"IFERROR(VLOOKUP(ROWS($D$2:D105),$A$2:$B$250,2,0),\"\")","v":""}]
[{"$f":"IF(ISNUMBER(FIND(#REF!,B106:B354)),MAX(A$1:$A105)+1,0)","v":0},"IN - India",null,{"$f":"IFERROR(VLOOKUP(ROWS($D$2:D106),$A$2:$B$250,2,0),\"\")","v":""}]
[{"$f":"IF(ISNUMBER(FIND(#REF!,B107:B355)),MAX(A$1:$A106)+1,0)","v":0},"IO - British Indian Ocean Territory",null,{"$f":"IFERROR(VLOOKUP(ROWS($D$2:D107),$A$2:$B$250,2,0),\"\")","v":""}]
[{"$f":"IF(ISNUMBER(FIND(#REF!,B108:B356)),MAX(A$1:$A107)+1,0)","v":0},"IQ - Iraq",null,{"$f":"IFERROR(VLOOKUP(ROWS($D$2:D108),$A$2:$B$250,2,0),\"\")","v":""}]
[{"$f":"IF(ISNUMBER(FIND(#REF!,B109:B357)),MAX(A$1:$A108)+1,0)","v":0},"IR - Iran (Islamic Republic of)",null,{"$f":"IFERROR(VLOOKUP(ROWS($D$2:D109),$A$2:$B$250,2,0),\"\")","v":""}]
[{"$f":"IF(ISNUMBER(FIND(#REF!,B110:B358)),MAX(A$1:$A109)+1,0)","v":0},"IS - Iceland",null,{"$f":"IFERROR(VLOOKUP(ROWS($D$2:D110),$A$2:$B$250,2,0),\"\")","v":""}]
[{"$f":"IF(ISNUMBER(FIND(#REF!,B111:B359)),MAX(A$1:$A110)+1,0)","v":0},"IT - Italy",null,{"$f":"IFERROR(VLOOKUP(ROWS($D$2:D111),$A$2:$B$250,2,0),\"\")","v":""}]
[{"$f":"IF(ISNUMBER(FIND(#REF!,B112:B360)),MAX(A$1:$A111)+1,0)","v":0},"JE - Jersey",null,{"$f":"IFERROR(VLOOKUP(ROWS($D$2:D112),$A$2:$B$250,2,0),\"\")","v":""}]
[{"$f":"IF(ISNUMBER(FIND(#REF!,B113:B361)),MAX(A$1:$A112)+1,0)","v":0},"JM - Jamaica",null,{"$f":"IFERROR(VLOOKUP(ROWS($D$2:D113),$A$2:$B$250,2,0),\"\")","v":""}]
[{"$f":"IF(ISNUMBER(FIND(#REF!,B114:B362)),MAX(A$1:$A113)+1,0)","v":0},"JO - Jordan",null,{"$f":"IFERROR(VLOOKUP(ROWS($D$2:D114),$A$2:$B$250,2,0),\"\")","v":""}]
[{"$f":"IF(ISNUMBER(FIND(#REF!,B115:B363)),MAX(A$1:$A114)+1,0)","v":0},"JP - Japan",null,{"$f":"IFERROR(VLOOKUP(ROWS($D$2:D115),$A$2:$B$250,2,0),\"\")","v":""}]
[{"$f":"IF(ISNUMBER(FIND(#REF!,B116:B364)),MAX(A$1:$A115)+1,0)","v":0},"KE - Kenya",null,{"$f":"IFERROR(VLOOKUP(ROWS($D$2:D116),$A$2:$B$250,2,0),\"\")","v":""}]
[{"$f":"IF(ISNUMBER(FIND(#REF!,B117:B365)),MAX(A$1:$A116)+1,0)","v":0},"KG - Kyrgyzstan",null,{"$f":"IFERROR(VLOOKUP(ROWS($D$2:D117),$A$2:$B$250,2,0),\"\")","v":""}]
[{"$f":"IF(ISNUMBER(FIND(#REF!,B118:B366)),MAX(A$1:$A117)+1,0)","v":0},"KH - Cambodia",null,{"$f":"IFERROR(VLOOKUP(ROWS($D$2:D118),$A$2:$B$250,2,0),\"\")","v":""}]
[{"$f":"IF(ISNUMBER(FIND(#REF!,B119:B367)),MAX(A$1:$A118)+1,0)","v":0},"KI - Kiribati",null,{"$f":"IFERROR(VLOOKUP(ROWS($D$2:D119),$A$2:$B$250,2,0),\"\")","v":""}]
[{"$f":"IF(ISNUMBER(FIND(#REF!,B120:B368)),MAX(A$1:$A119)+1,0)","v":0},"KM - Comoros",null,{"$f":"IFERROR(VLOOKUP(ROWS($D$2:D120),$A$2:$B$250,2,0),\"\")","v":""}]
[{"$f":"IF(ISNUMBER(FIND(#REF!,B121:B369)),MAX(A$1:$A120)+1,0)","v":0},"KN - Saint Kitts and Nevis",null,{"$f":"IFERROR(VLOOKUP(ROWS($D$2:D121),$A$2:$B$250,2,0),\"\")","v":""}]
[{"$f":"IF(ISNUMBER(FIND(#REF!,B122:B370)),MAX(A$1:$A121)+1,0)","v":0},"KP - Korea (Democratic People's Republic of)",null,{"$f":"IFERROR(VLOOKUP(ROWS($D$2:D122),$A$2:$B$250,2,0),\"\")","v":""}]
[{"$f":"IF(ISNUMBER(FIND(#REF!,B123:B371)),MAX(A$1:$A122)+1,0)","v":0},"KR - Korea, Republic of",null,{"$f":"IFERROR(VLOOKUP(ROWS($D$2:D123),$A$2:$B$250,2,0),\"\")","v":""}]
[{"$f":"IF(ISNUMBER(FIND(#REF!,B124:B372)),MAX(A$1:$A123)+1,0)","v":0},"KW - Kuwait",null,{"$f":"IFERROR(VLOOKUP(ROWS($D$2:D124),$A$2:$B$250,2,0),\"\")","v":""}]
[{"$f":"IF(ISNUMBER(FIND(#REF!,B125:B373)),MAX(A$1:$A124)+1,0)","v":0},"KY - Cayman Islands",null,{"$f":"IFERROR(VLOOKUP(ROWS($D$2:D125),$A$2:$B$250,2,0),\"\")","v":""}]
[{"$f":"IF(ISNUMBER(FIND(#REF!,B126:B374)),MAX(A$1:$A125)+1,0)","v":0},"KZ - Kazakhstan",null,{"$f":"IFERROR(VLOOKUP(ROWS($D$2:D126),$A$2:$B$250,2,0),\"\")","v":""}]
[{"$f":"IF(ISNUMBER(FIND(#REF!,B127:B375)),MAX(A$1:$A126)+1,0)","v":0},"LA - Lao People's Democratic Republic",null,{"$f":"IFERROR(VLOOKUP(ROWS($D$2:D127),$A$2:$B$250,2,0),\"\")","v":""}]
[{"$f":"IF(ISNUMBER(FIND(#REF!,B128:B376)),MAX(A$1:$A127)+1,0)","v":0},"LB - Lebanon",null,{"$f":"IFERROR(VLOOKUP(ROWS($D$2:D128),$A$2:$B$250,2,0),\"\")","v":""}]
[{"$f":"IF(ISNUMBER(FIND(#REF!,B129:B377)),MAX(A$1:$A128)+1,0)","v":0},"LC - Saint Lucia",null,{"$f":"IFERROR(VLOOKUP(ROWS($D$2:D129),$A$2:$B$250,2,0),\"\")","v":""}]
[{"$f":"IF(ISNUMBER(FIND(#REF!,B130:B378)),MAX(A$1:$A129)+1,0)","v":0},"LI - Liechtenstein",null,{"$f":"IFERROR(VLOOKUP(ROWS($D$2:D130),$A$2:$B$250,2,0),\"\")","v":""}]
[{"$f":"IF(ISNUMBER(FIND(#REF!,B131:B379)),MAX(A$1:$A130)+1,0)","v":0},"LK - Sri Lanka",null,{"$f":"IFERROR(VLOOKUP(ROWS($D$2:D131),$A$2:$B$250,2,0),\"\")","v":""}]
[{"$f":"IF(ISNUMBER(FIND(#REF!,B132:B380)),MAX(A$1:$A131)+1,0)","v":0},"LR - Liberia",null,{"$f":"IFERROR(VLOOKUP(ROWS($D$2:D132),$A$2:$B$250,2,0),\"\")","v":""}]
[{"$f":"IF(ISNUMBER(FIND(#REF!,B133:B381)),MAX(A$1:$A132)+1,0)","v":0},"LS - Lesotho",null,{"$f":"IFERROR(VLOOKUP(ROWS($D$2:D133),$A$2:$B$250,2,0),\"\")","v":""}]
[{"$f":"IF(ISNUMBER(FIND(#REF!,B134:B382)),MAX(A$1:$A133)+1,0)","v":0},"LT - Lithuania",null,{"$f":"IFERROR(VLOOKUP(ROWS($D$2:D134),$A$2:$B$250,2,0),\"\")","v":""}]
[{"$f":"IF(ISNUMBER(FIND(#REF!,B135:B383)),MAX(A$1:$A134)+1,0)","v":0},"LU - Luxembourg",null,{"$f":"IFERROR(VLOOKUP(ROWS($D$2:D135),$A$2:$B$250,2,0),\"\")","v":""}]
[{"$f":"IF(ISNUMBER(FIND(#REF!,B136:B384)),MAX(A$1:$A135)+1,0)","v":0},"LV - Latvia",null,{"$f":"IFERROR(VLOOKUP(ROWS($D$2:D136),$A$2:$B$250,2,0),\"\")","v":""}]
[{"$f":"IF(ISNUMBER(FIND(#REF!,B137:B385)),MAX(A$1:$A136)+1,0)","v":0},"LY - Libya",null,{"$f":"IFERROR(VLOOKUP(ROWS($D$2:D137),$A$2:$B$250,2,0),\"\")","v":""}]
[{"$f":"IF(ISNUMBER(FIND(#REF!,B138:B386)),MAX(A$1:$A137)+1,0)","v":0},"MA - Morocco",null,{"$f":"IFERROR(VLOOKUP(ROWS($D$2:D138),$A$2:$B$250,2,0),\"\")","v":""}]
[{"$f":"IF(ISNUMBER(FIND(#REF!,B139:B387)),MAX(A$1:$A138)+1,0)","v":0},"MC - Monaco",null,{"$f":"IFERROR(VLOOKUP(ROWS($D$2:D139),$A$2:$B$250,2,0),\"\")","v":""}]
[{"$f":"IF(ISNUMBER(FIND(#REF!,B140:B388)),MAX(A$1:$A139)+1,0)","v":0},"MD - Moldova, Republic of",null,{"$f":"IFERROR(VLOOKUP(ROWS($D$2:D140),$A$2:$B$250,2,0),\"\")","v":""}]
[{"$f":"IF(ISNUMBER(FIND(#REF!,B141:B389)),MAX(A$1:$A140)+1,0)","v":0},"ME - Montenegro",null,{"$f":"IFERROR(VLOOKUP(ROWS($D$2:D141),$A$2:$B$250,2,0),\"\")","v":""}]
[{"$f":"IF(ISNUMBER(FIND(#REF!,B142:B390)),MAX(A$1:$A141)+1,0)","v":0},"MF - Saint Martin (French part)",null,{"$f":"IFERROR(VLOOKUP(ROWS($D$2:D142),$A$2:$B$250,2,0),\"\")","v":""}]
[{"$f":"IF(ISNUMBER(FIND(#REF!,B143:B391)),MAX(A$1:$A142)+1,0)","v":0},"MG - Madagascar",null,{"$f":"IFERROR(VLOOKUP(ROWS($D$2:D143),$A$2:$B$250,2,0),\"\")","v":""}]
[{"$f":"IF(ISNUMBER(FIND(#REF!,B144:B392)),MAX(A$1:$A143)+1,0)","v":0},"MH - Marshall Islands",null,{"$f":"IFERROR(VLOOKUP(ROWS($D$2:D144),$A$2:$B$250,2,0),\"\")","v":""}]
[{"$f":"IF(ISNUMBER(FIND(#REF!,B145:B393)),MAX(A$1:$A144)+1,0)","v":0},"MK - North Macedonia",null,{"$f":"IFERROR(VLOOKUP(ROWS($D$2:D145),$A$2:$B$250,2,0),\"\")","v":""}]
[{"$f":"IF(ISNUMBER(FIND(#REF!,B146:B394)),MAX(A$1:$A145)+1,0)","v":0},"ML - Mali",null,{"$f":"IFERROR(VLOOKUP(ROWS($D$2:D146),$A$2:$B$250,2,0),\"\")","v":""}]
[{"$f":"IF(ISNUMBER(FIND(#REF!,B147:B395)),MAX(A$1:$A146)+1,0)","v":0},"MM - Myanmar",null,{"$f":"IFERROR(VLOOKUP(ROWS($D$2:D147),$A$2:$B$250,2,0),\"\")","v":""}]
[{"$f":"IF(ISNUMBER(FIND(#REF!,B148:B396)),MAX(A$1:$A147)+1,0)","v":0},"MN - Mongolia",null,{"$f":"IFERROR(VLOOKUP(ROWS($D$2:D148),$A$2:$B$250,2,0),\"\")","v":""}]
[{"$f":"IF(ISNUMBER(FIND(#REF!,B149:B397)),MAX(A$1:$A148)+1,0)","v":0},"MO - Macao",null,{"$f":"IFERROR(VLOOKUP(ROWS($D$2:D149),$A$2:$B$250,2,0),\"\")","v":""}]
[{"$f":"IF(ISNUMBER(FIND(#REF!,B150:B398)),MAX(A$1:$A149)+1,0)","v":0},"MP - Northern Mariana Islands",null,{"$f":"IFERROR(VLOOKUP(ROWS($D$2:D150),$A$2:$B$250,2,0),\"\")","v":""}]
[{"$f":"IF(ISNUMBER(FIND(#REF!,B151:B399)),MAX(A$1:$A150)+1,0)","v":0},"MQ - Martinique",null,{"$f":"IFERROR(VLOOKUP(ROWS($D$2:D151),$A$2:$B$250,2,0),\"\")","v":""}]
[{"$f":"IF(ISNUMBER(FIND(#REF!,B152:B400)),MAX(A$1:$A151)+1,0)","v":0},"MR - Mauritania",null,{"$f":"IFERROR(VLOOKUP(ROWS($D$2:D152),$A$2:$B$250,2,0),\"\")","v":""}]
[{"$f":"IF(ISNUMBER(FIND(#REF!,B153:B401)),MAX(A$1:$A152)+1,0)","v":0},"MS - Montserrat",null,{"$f":"IFERROR(VLOOKUP(ROWS($D$2:D153),$A$2:$B$250,2,0),\"\")","v":""}]
[{"$f":"IF(ISNUMBER(FIND(#REF!,B154:B402)),MAX(A$1:$A153)+1,0)","v":0},"MT - Malta",null,{"$f":"IFERROR(VLOOKUP(ROWS($D$2:D154),$A$2:$B$250,2,0),\"\")","v":""}]
[{"$f":"IF(ISNUMBER(FIND(#REF!,B155:B403)),MAX(A$1:$A154)+1,0)","v":0},"MU - Mauritius",null,{"$f":"IFERROR(VLOOKUP(ROWS($D$2:D155),$A$2:$B$250,2,0),\"\")","v":""}]
[{"$f":"IF(ISNUMBER(FIND(#REF!,B156:B404)),MAX(A$1:$A155)+1,0)","v":0},"MV - Maldives",null,{"$f":"IFERROR(VLOOKUP(ROWS($D$2:D156),$A$2:$B$250,2,0),\"\")","v":""}]
[{"$f":"IF(ISNUMBER(FIND(#REF!,B157:B405)),MAX(A$1:$A156)+1,0)","v":0},"MW - Malawi",null,{"$f":"IFERROR(VLOOKUP(ROWS($D$2:D157),$A$2:$B$250,2,0),\"\")","v":""}]
[{"$f":"IF(ISNUMBER(FIND(#REF!,B158:B406)),MAX(A$1:$A157)+1,0)","v":0},"MX - Mexico",null,{"$f":"IFERROR(VLOOKUP(ROWS($D$2:D158),$A$2:$B$250,2,0),\"\")","v":""}]
[{"$f":"IF(ISNUMBER(FIND(#REF!,B159:B407)),MAX(A$1:$A158)+1,0)","v":0},"MY - Malaysia",null,{"$f":"IFERROR(VLOOKUP(ROWS($D$2:D159),$A$2:$B$250,2,0),\"\")","v":""}]
[{"$f":"IF(ISNUMBER(FIND(#REF!,B160:B408)),MAX(A$1:$A159)+1,0)","v":0},"MZ - Mozambique",null,{"$f":"IFERROR(VLOOKUP(ROWS($D$2:D160),$A$2:$B$250,2,0),\"\")","v":""}]
[{"$f":"IF(ISNUMBER(FIND(#REF!,B161:B409)),MAX(A$1:$A160)+1,0)","v":0},"NA - Namibia",null,{"$f":"IFERROR(VLOOKUP(ROWS($D$2:D161),$A$2:$B$250,2,0),\"\")","v":""}]
[{"$f":"IF(ISNUMBER(FIND(#REF!,B162:B410)),MAX(A$1:$A161)+1,0)","v":0},"NC - New Caledonia",null,{"$f":"IFERROR(VLOOKUP(ROWS($D$2:D162),$A$2:$B$250,2,0),\"\")","v":""}]
[{"$f":"IF(ISNUMBER(FIND(#REF!,B163:B411)),MAX(A$1:$A162)+1,0)","v":0},"NE - Niger",null,{"$f":"IFERROR(VLOOKUP(ROWS($D$2:D163),$A$2:$B$250,2,0),\"\")","v":""}]
[{"$f":"IF(ISNUMBER(FIND(#REF!,B164:B412)),MAX(A$1:$A163)+1,0)","v":0},"NF - Norfolk Island",null,{"$f":"IFERROR(VLOOKUP(ROWS($D$2:D164),$A$2:$B$250,2,0),\"\")","v":""}]
[{"$f":"IF(ISNUMBER(FIND(#REF!,B165:B413)),MAX(A$1:$A164)+1,0)","v":0},"NG - Nigeria",null,{"$f":"IFERROR(VLOOKUP(ROWS($D$2:D165),$A$2:$B$250,2,0),\"\")","v":""}]
[{"$f":"IF(ISNUMBER(FIND(#REF!,B166:B414)),MAX(A$1:$A165)+1,0)","v":0},"NI - Nicaragua",null,{"$f":"IFERROR(VLOOKUP(ROWS($D$2:D166),$A$2:$B$250,2,0),\"\")","v":""}]
[{"$f":"IF(ISNUMBER(FIND(#REF!,B167:B415)),MAX(A$1:$A166)+1,0)","v":0},"NL - Netherlands",null,{"$f":"IFERROR(VLOOKUP(ROWS($D$2:D167),$A$2:$B$250,2,0),\"\")","v":""}]
[{"$f":"IF(ISNUMBER(FIND(#REF!,B168:B416)),MAX(A$1:$A167)+1,0)","v":0},"NO - Norway",null,{"$f":"IFERROR(VLOOKUP(ROWS($D$2:D168),$A$2:$B$250,2,0),\"\")","v":""}]
[{"$f":"IF(ISNUMBER(FIND(#REF!,B169:B417)),MAX(A$1:$A168)+1,0)","v":0},"NP - Nepal",null,{"$f":"IFERROR(VLOOKUP(ROWS($D$2:D169),$A$2:$B$250,2,0),\"\")","v":""}]
[{"$f":"IF(ISNUMBER(FIND(#REF!,B170:B418)),MAX(A$1:$A169)+1,0)","v":0},"NR - Nauru",null,{"$f":"IFERROR(VLOOKUP(ROWS($D$2:D170),$A$2:$B$250,2,0),\"\")","v":""}]
[{"$f":"IF(ISNUMBER(FIND(#REF!,B171:B419)),MAX(A$1:$A170)+1,0)","v":0},"NU - Niue",null,{"$f":"IFERROR(VLOOKUP(ROWS($D$2:D171),$A$2:$B$250,2,0),\"\")","v":""}]
[{"$f":"IF(ISNUMBER(FIND(#REF!,B172:B420)),MAX(A$1:$A171)+1,0)","v":0},"NZ - New Zealand",null,{"$f":"IFERROR(VLOOKUP(ROWS($D$2:D172),$A$2:$B$250,2,0),\"\")","v":""}]
[{"$f":"IF(ISNUMBER(FIND(#REF!,B173:B421)),MAX(A$1:$A172)+1,0)","v":0},"OM - Oman",null,{"$f":"IFERROR(VLOOKUP(ROWS($D$2:D173),$A$2:$B$250,2,0),\"\")","v":""}]
[{"$f":"IF(ISNUMBER(FIND(#REF!,B174:B422)),MAX(A$1:$A173)+1,0)","v":0},"PA - Panama",null,{"$f":"IFERROR(VLOOKUP(ROWS($D$2:D174),$A$2:$B$250,2,0),\"\")","v":""}]
[{"$f":"IF(ISNUMBER(FIND(#REF!,B175:B423)),MAX(A$1:$A174)+1,0)","v":0},"PE - Peru",null,{"$f":"IFERROR(VLOOKUP(ROWS($D$2:D175),$A$2:$B$250,2,0),\"\")","v":""}]
[{"$f":"IF(ISNUMBER(FIND(#REF!,B176:B424)),MAX(A$1:$A175)+1,0)","v":0},"PF - French Polynesia",null,{"$f":"IFERROR(VLOOKUP(ROWS($D$2:D176),$A$2:$B$250,2,0),\"\")","v":""}]
[{"$f":"IF(ISNUMBER(FIND(#REF!,B177:B425)),MAX(A$1:$A176)+1,0)","v":0},"PG - Papua New Guinea",null,{"$f":"IFERROR(VLOOKUP(ROWS($D$2:D177),$A$2:$B$250,2,0),\"\")","v":""}]
[{"$f":"IF(ISNUMBER(FIND(#REF!,B178:B426)),MAX(A$1:$A177)+1,0)","v":0},"PH - Philippines",null,{"$f":"IFERROR(VLOOKUP(ROWS($D$2:D178),$A$2:$B$250,2,0),\"\")","v":""}]
[{"$f":"IF(ISNUMBER(FIND(#REF!,B179:B427)),MAX(A$1:$A178)+1,0)","v":0},"PK - Pakistan",null,{"$f":"IFERROR(VLOOKUP(ROWS($D$2:D179),$A$2:$B$250,2,0),\"\")","v":""}]
[{"$f":"IF(ISNUMBER(FIND(#REF!,B180:B428)),MAX(A$1:$A179)+1,0)","v":0},"PL - Poland",null,{"$f":"IFERROR(VLOOKUP(ROWS($D$2:D180),$A$2:$B$250,2,0),\"\")","v":""}]
[{"$f":"IF(ISNUMBER(FIND(#REF!,B181:B429)),MAX(A$1:$A180)+1,0)","v":0},"PM - Saint Pierre and Miquelon",null,{"$f":"IFERROR(VLOOKUP(ROWS($D$2:D181),$A$2:$B$250,2,0),\"\")","v":""}]
[{"$f":"IF(ISNUMBER(FIND(#REF!,B182:B430)),MAX(A$1:$A181)+1,0)","v":0},"PN - Pitcairn",null,{"$f":"IFERROR(VLOOKUP(ROWS($D$2:D182),$A$2:$B$250,2,0),\"\")","v":""}]
[{"$f":"IF(ISNUMBER(FIND(#REF!,B183:B431)),MAX(A$1:$A182)+1,0)","v":0},"PR - Puerto Rico",null,{"$f":"IFERROR(VLOOKUP(ROWS($D$2:D183),$A$2:$B$250,2,0),\"\")","v":""}]
[{"$f":"IF(ISNUMBER(FIND(#REF!,B184:B432)),MAX(A$1:$A183)+1,0)","v":0},"PS - Palestine, State of",null,{"$f":"IFERROR(VLOOKUP(ROWS($D$2:D184),$A$2:$B$250,2,0),\"\")","v":""}]
[{"$f":"IF(ISNUMBER(FIND(#REF!,B185:B433)),MAX(A$1:$A184)+1,0)","v":0},"PT - Portugal",null,{"$f":"IFERROR(VLOOKUP(ROWS($D$2:D185),$A$2:$B$250,2,0),\"\")","v":""}]
[{"$f":"IF(ISNUMBER(FIND(#REF!,B186:B434)),MAX(A$1:$A185)+1,0)","v":0},"PW - Palau",null,{"$f":"IFERROR(VLOOKUP(ROWS($D$2:D186),$A$2:$B$250,2,0),\"\")","v":""}]
[{"$f":"IF(ISNUMBER(FIND(#REF!,B187:B435)),MAX(A$1:$A186)+1,0)","v":0},"PY - Paraguay",null,{"$f":"IFERROR(VLOOKUP(ROWS($D$2:D187),$A$2:$B$250,2,0),\"\")","v":""}]
[{"$f":"IF(ISNUMBER(FIND(#REF!,B188:B436)),MAX(A$1:$A187)+1,0)","v":0},"QA - Qatar",null,{"$f":"IFERROR(VLOOKUP(ROWS($D$2:D188),$A$2:$B$250,2,0),\"\")","v":""}]
[{"$f":"IF(ISNUMBER(FIND(#REF!,B189:B437)),MAX(A$1:$A188)+1,0)","v":0},"RE - Réunion",null,{"$f":"IFERROR(VLOOKUP(ROWS($D$2:D189),$A$2:$B$250,2,0),\"\")","v":""}]
[{"$f":"IF(ISNUMBER(FIND(#REF!,B190:B438)),MAX(A$1:$A189)+1,0)","v":0},"RO - Romania",null,{"$f":"IFERROR(VLOOKUP(ROWS($D$2:D190),$A$2:$B$250,2,0),\"\")","v":""}]
[{"$f":"IF(ISNUMBER(FIND(#REF!,B191:B439)),MAX(A$1:$A190)+1,0)","v":0},"RS - Serbia",null,{"$f":"IFERROR(VLOOKUP(ROWS($D$2:D191),$A$2:$B$250,2,0),\"\")","v":""}]
[{"$f":"IF(ISNUMBER(FIND(#REF!,B192:B440)),MAX(A$1:$A191)+1,0)","v":0},"RU - Russian Federation",null,{"$f":"IFERROR(VLOOKUP(ROWS($D$2:D192),$A$2:$B$250,2,0),\"\")","v":""}]
[{"$f":"IF(ISNUMBER(FIND(#REF!,B193:B441)),MAX(A$1:$A192)+1,0)","v":0},"RW - Rwanda",null,{"$f":"IFERROR(VLOOKUP(ROWS($D$2:D193),$A$2:$B$250,2,0),\"\")","v":""}]
[{"$f":"IF(ISNUMBER(FIND(#REF!,B194:B442)),MAX(A$1:$A193)+1,0)","v":0},"SA - Saudi Arabia",null,{"$f":"IFERROR(VLOOKUP(ROWS($D$2:D194),$A$2:$B$250,2,0),\"\")","v":""}]
[{"$f":"IF(ISNUMBER(FIND(#REF!,B195:B443)),MAX(A$1:$A194)+1,0)","v":0},"SB - Solomon Islands",null,{"$f":"IFERROR(VLOOKUP(ROWS($D$2:D195),$A$2:$B$250,2,0),\"\")","v":""}]
[{"$f":"IF(ISNUMBER(FIND(#REF!,B196:B444)),MAX(A$1:$A195)+1,0)","v":0},"SC - Seychelles",null,{"$f":"IFERROR(VLOOKUP(ROWS($D$2:D196),$A$2:$B$250,2,0),\"\")","v":""}]
[{"$f":"IF(ISNUMBER(FIND(#REF!,B197:B445)),MAX(A$1:$A196)+1,0)","v":0},"SD - Sudan",null,{"$f":"IFERROR(VLOOKUP(ROWS($D$2:D197),$A$2:$B$250,2,0),\"\")","v":""}]
[{"$f":"IF(ISNUMBER(FIND(#REF!,B198:B446)),MAX(A$1:$A197)+1,0)","v":0},"SE - Sweden",null,{"$f":"IFERROR(VLOOKUP(ROWS($D$2:D198),$A$2:$B$250,2,0),\"\")","v":""}]
[{"$f":"IF(ISNUMBER(FIND(#REF!,B199:B447)),MAX(A$1:$A198)+1,0)","v":0},"SG - Singapore",null,{"$f":"IFERROR(VLOOKUP(ROWS($D$2:D199),$A$2:$B$250,2,0),\"\")","v":""}]
[{"$f":"IF(ISNUMBER(FIND(#REF!,B200:B448)),MAX(A$1:$A199)+1,0)","v":0},"SH - Saint Helena, Ascension and Tristan da Cunha",null,{"$f":"IFERROR(VLOOKUP(ROWS($D$2:D200),$A$2:$B$250,2,0),\"\")","v":""}]
[{"$f":"IF(ISNUMBER(FIND(#REF!,B201:B449)),MAX(A$1:$A200)+1,0)","v":0},"SI - Slovenia",null,{"$f":"IFERROR(VLOOKUP(ROWS($D$2:D201),$A$2:$B$250,2,0),\"\")","v":""}]
[{"$f":"IF(ISNUMBER(FIND(#REF!,B202:B450)),MAX(A$1:$A201)+1,0)","v":0},"SJ - Svalbard and Jan Mayen",null,{"$f":"IFERROR(VLOOKUP(ROWS($D$2:D202),$A$2:$B$250,2,0),\"\")","v":""}]
[{"$f":"IF(ISNUMBER(FIND(#REF!,B203:B451)),MAX(A$1:$A202)+1,0)","v":0},"SK - Slovakia",null,{"$f":"IFERROR(VLOOKUP(ROWS($D$2:D203),$A$2:$B$250,2,0),\"\")","v":""}]
[{"$f":"IF(ISNUMBER(FIND(#REF!,B204:B452)),MAX(A$1:$A203)+1,0)","v":0},"SL - Sierra Leone",null,{"$f":"IFERROR(VLOOKUP(ROWS($D$2:D204),$A$2:$B$250,2,0),\"\")","v":""}]
[{"$f":"IF(ISNUMBER(FIND(#REF!,B205:B453)),MAX(A$1:$A204)+1,0)","v":0},"SM - San Marino",null,{"$f":"IFERROR(VLOOKUP(ROWS($D$2:D205),$A$2:$B$250,2,0),\"\")","v":""}]
[{"$f":"IF(ISNUMBER(FIND(#REF!,B206:B454)),MAX(A$1:$A205)+1,0)","v":0},"SN - Senegal",null,{"$f":"IFERROR(VLOOKUP(ROWS($D$2:D206),$A$2:$B$250,2,0),\"\")","v":""}]
[{"$f":"IF(ISNUMBER(FIND(#REF!,B207:B455)),MAX(A$1:$A206)+1,0)","v":0},"SO - Somalia",null,{"$f":"IFERROR(VLOOKUP(ROWS($D$2:D207),$A$2:$B$250,2,0),\"\")","v":""}]
[{"$f":"IF(ISNUMBER(FIND(#REF!,B208:B456)),MAX(A$1:$A207)+1,0)","v":0},"SR - Suriname",null,{"$f":"IFERROR(VLOOKUP(ROWS($D$2:D208),$A$2:$B$250,2,0),\"\")","v":""}]
[{"$f":"IF(ISNUMBER(FIND(#REF!,B209:B457)),MAX(A$1:$A208)+1,0)","v":0},"SS - South Sudan",null,{"$f":"IFERROR(VLOOKUP(ROWS($D$2:D209),$A$2:$B$250,2,0),\"\")","v":""}]
[{"$f":"IF(ISNUMBER(FIND(#REF!,B210:B458)),MAX(A$1:$A209)+1,0)","v":0},"ST - Sao Tome and Principe",null,{"$f":"IFERROR(VLOOKUP(ROWS($D$2:D210),$A$2:$B$250,2,0),\"\")","v":""}]
[{"$f":"IF(ISNUMBER(FIND(#REF!,B211:B459)),MAX(A$1:$A210)+1,0)","v":0},"SV - El Salvador",null,{"$f":"IFERROR(VLOOKUP(ROWS($D$2:D211),$A$2:$B$250,2,0),\"\")","v":""}]
[{"$f":"IF(ISNUMBER(FIND(#REF!,B212:B460)),MAX(A$1:$A211)+1,0)","v":0},"SX - Sint Maarten (Dutch part)",null,{"$f":"IFERROR(VLOOKUP(ROWS($D$2:D212),$A$2:$B$250,2,0),\"\")","v":""}]
[{"$f":"IF(ISNUMBER(FIND(#REF!,B213:B461)),MAX(A$1:$A212)+1,0)","v":0},"SY - Syrian Arab Republic",null,{"$f":"IFERROR(VLOOKUP(ROWS($D$2:D213),$A$2:$B$250,2,0),\"\")","v":""}]
[{"$f":"IF(ISNUMBER(FIND(#REF!,B214:B462)),MAX(A$1:$A213)+1,0)","v":0},"SZ - Eswatini",null,{"$f":"IFERROR(VLOOKUP(ROWS($D$2:D214),$A$2:$B$250,2,0),\"\")","v":""}]
[{"$f":"IF(ISNUMBER(FIND(#REF!,B215:B463)),MAX(A$1:$A214)+1,0)","v":0},"TC - Turks and Caicos Islands",null,{"$f":"IFERROR(VLOOKUP(ROWS($D$2:D215),$A$2:$B$250,2,0),\"\")","v":""}]
[{"$f":"IF(ISNUMBER(FIND(#REF!,B216:B464)),MAX(A$1:$A215)+1,0)","v":0},"TD - Chad",null,{"$f":"IFERROR(VLOOKUP(ROWS($D$2:D216),$A$2:$B$250,2,0),\"\")","v":""}]
[{"$f":"IF(ISNUMBER(FIND(#REF!,B217:B465)),MAX(A$1:$A216)+1,0)","v":0},"TF - French Southern Territories",null,{"$f":"IFERROR(VLOOKUP(ROWS($D$2:D217),$A$2:$B$250,2,0),\"\")","v":""}]
[{"$f":"IF(ISNUMBER(FIND(#REF!,B218:B466)),MAX(A$1:$A217)+1,0)","v":0},"TG - Togo",null,{"$f":"IFERROR(VLOOKUP(ROWS($D$2:D218),$A$2:$B$250,2,0),\"\")","v":""}]
[{"$f":"IF(ISNUMBER(FIND(#REF!,B219:B467)),MAX(A$1:$A218)+1,0)","v":0},"TH - Thailand",null,{"$f":"IFERROR(VLOOKUP(ROWS($D$2:D219),$A$2:$B$250,2,0),\"\")","v":""}]
[{"$f":"IF(ISNUMBER(FIND(#REF!,B220:B468)),MAX(A$1:$A219)+1,0)","v":0},"TJ - Tajikistan",null,{"$f":"IFERROR(VLOOKUP(ROWS($D$2:D220),$A$2:$B$250,2,0),\"\")","v":""}]
[{"$f":"IF(ISNUMBER(FIND(#REF!,B221:B469)),MAX(A$1:$A220)+1,0)","v":0},"TK - Tokelau",null,{"$f":"IFERROR(VLOOKUP(ROWS($D$2:D221),$A$2:$B$250,2,0),\"\")","v":""}]
[{"$f":"IF(ISNUMBER(FIND(#REF!,B222:B470)),MAX(A$1:$A221)+1,0)","v":0},"TL - Timor-Leste",null,{"$f":"IFERROR(VLOOKUP(ROWS($D$2:D222),$A$2:$B$250,2,0),\"\")","v":""}]
[{"$f":"IF(ISNUMBER(FIND(#REF!,B223:B471)),MAX(A$1:$A222)+1,0)","v":0},"TM - Turkmenistan",null,{"$f":"IFERROR(VLOOKUP(ROWS($D$2:D223),$A$2:$B$250,2,0),\"\")","v":""}]
[{"$f":"IF(ISNUMBER(FIND(#REF!,B224:B472)),MAX(A$1:$A223)+1,0)","v":0},"TN - Tunisia",null,{"$f":"IFERROR(VLOOKUP(ROWS($D$2:D224),$A$2:$B$250,2,0),\"\")","v":""}]
[{"$f":"IF(ISNUMBER(FIND(#REF!,B225:B473)),MAX(A$1:$A224)+1,0)","v":0},"TO - Tonga",null,{"$f":"IFERROR(VLOOKUP(ROWS($D$2:D225),$A$2:$B$250,2,0),\"\")","v":""}]
[{"$f":"IF(ISNUMBER(FIND(#REF!,B226:B474)),MAX(A$1:$A225)+1,0)","v":0},"TR - Turkey",null,{"$f":"IFERROR(VLOOKUP(ROWS($D$2:D226),$A$2:$B$250,2,0),\"\")","v":""}]
[{"$f":"IF(ISNUMBER(FIND(#REF!,B227:B475)),MAX(A$1:$A226)+1,0)","v":0},"TT - Trinidad and Tobago",null,{"$f":"IFERROR(VLOOKUP(ROWS($D$2:D227),$A$2:$B$250,2,0),\"\")","v":""}]
[{"$f":"IF(ISNUMBER(FIND(#REF!,B228:B476)),MAX(A$1:$A227)+1,0)","v":0},"TV - Tuvalu",null,{"$f":"IFERROR(VLOOKUP(ROWS($D$2:D228),$A$2:$B$250,2,0),\"\")","v":""}]
[{"$f":"IF(ISNUMBER(FIND(#REF!,B229:B477)),MAX(A$1:$A228)+1,0)","v":0},"TW - Taiwan, Province of China",null,{"$f":"IFERROR(VLOOKUP(ROWS($D$2:D229),$A$2:$B$250,2,0),\"\")","v":""}]
[{"$f":"IF(ISNUMBER(FIND(#REF!,B230:B478)),MAX(A$1:$A229)+1,0)","v":0},"TZ - Tanzania, United Republic of",null,{"$f":"IFERROR(VLOOKUP(ROWS($D$2:D230),$A$2:$B$250,2,0),\"\")","v":""}]
[{"$f":"IF(ISNUMBER(FIND(#REF!,B231:B479)),MAX(A$1:$A230)+1,0)","v":0},"UA - Ukraine",null,{"$f":"IFERROR(VLOOKUP(ROWS($D$2:D231),$A$2:$B$250,2,0),\"\")","v":""}]
[{"$f":"IF(ISNUMBER(FIND(#REF!,B232:B480)),MAX(A$1:$A231)+1,0)","v":0},"UG - Uganda",null,{"$f":"IFERROR(VLOOKUP(ROWS($D$2:D232),$A$2:$B$250,2,0),\"\")","v":""}]
[{"$f":"IF(ISNUMBER(FIND(#REF!,B233:B481)),MAX(A$1:$A232)+1,0)","v":0},"UM - United States Minor Outlying Islands",null,{"$f":"IFERROR(VLOOKUP(ROWS($D$2:D233),$A$2:$B$250,2,0),\"\")","v":""}]
[{"$f":"IF(ISNUMBER(FIND(#REF!,B234:B482)),MAX(A$1:$A233)+1,0)","v":0},"US - United States of America",null,{"$f":"IFERROR(VLOOKUP(ROWS($D$2:D234),$A$2:$B$250,2,0),\"\")","v":""}]
[{"$f":"IF(ISNUMBER(FIND(#REF!,B235:B483)),MAX(A$1:$A234)+1,0)","v":0},"UY - Uruguay",null,{"$f":"IFERROR(VLOOKUP(ROWS($D$2:D235),$A$2:$B$250,2,0),\"\")","v":""}]
[{"$f":"IF(ISNUMBER(FIND(#REF!,B236:B484)),MAX(A$1:$A235)+1,0)","v":0},"UZ - Uzbekistan",null,{"$f":"IFERROR(VLOOKUP(ROWS($D$2:D236),$A$2:$B$250,2,0),\"\")","v":""}]
[{"$f":"IF(ISNUMBER(FIND(#REF!,B237:B485)),MAX(A$1:$A236)+1,0)","v":0},"VA - Holy See",null,{"$f":"IFERROR(VLOOKUP(ROWS($D$2:D237),$A$2:$B$250,2,0),\"\")","v":""}]
[{"$f":"IF(ISNUMBER(FIND(#REF!,B238:B486)),MAX(A$1:$A237)+1,0)","v":0},"VC - Saint Vincent and the Grenadines",null,{"$f":"IFERROR(VLOOKUP(ROWS($D$2:D238),$A$2:$B$250,2,0),\"\")","v":""}]
[{"$f":"IF(ISNUMBER(FIND(#REF!,B239:B487)),MAX(A$1:$A238)+1,0)","v":0},"VE - Venezuela (Bolivarian Republic of)",null,{"$f":"IFERROR(VLOOKUP(ROWS($D$2:D239),$A$2:$B$250,2,0),\"\")","v":""}]
[{"$f":"IF(ISNUMBER(FIND(#REF!,B240:B488)),MAX(A$1:$A239)+1,0)","v":0},"VG - Virgin Islands (British)",null,{"$f":"IFERROR(VLOOKUP(ROWS($D$2:D240),$A$2:$B$250,2,0),\"\")","v":""}]
[{"$f":"IF(ISNUMBER(FIND(#REF!,B241:B489)),MAX(A$1:$A240)+1,0)","v":0},"VI - Virgin Islands (U.S.)",null,{"$f":"IFERROR(VLOOKUP(ROWS($D$2:D241),$A$2:$B$250,2,0),\"\")","v":""}]
[{"$f":"IF(ISNUMBER(FIND(#REF!,B242:B490)),MAX(A$1:$A241)+1,0)","v":0},"VN - Viet Nam",null,{"$f":"IFERROR(VLOOKUP(ROWS($D$2:D242),$A$2:$B$250,2,0),\"\")","v":""}]
[{"$f":"IF(ISNUMBER(FIND(#REF!,B243:B491)),MAX(A$1:$A242)+1,0)","v":0},"VU - Vanuatu",null,{"$f":"IFERROR(VLOOKUP(ROWS($D$2:D243),$A$2:$B$250,2,0),\"\")","v":""}]
[{"$f":"IF(ISNUMBER(FIND(#REF!,B244:B492)),MAX(A$1:$A243)+1,0)","v":0},"WF - Wallis and Futuna",null,{"$f":"IFERROR(VLOOKUP(ROWS($D$2:D244),$A$2:$B$250,2,0),\"\")","v":""}]
[{"$f":"IF(ISNUMBER(FIND(#REF!,B245:B493)),MAX(A$1:$A244)+1,0)","v":0},"WS - Samoa",null,{"$f":"IFERROR(VLOOKUP(ROWS($D$2:D245),$A$2:$B$250,2,0),\"\")","v":""}]
[{"$f":"IF(ISNUMBER(FIND(#REF!,B246:B494)),MAX(A$1:$A245)+1,0)","v":0},"YE - Yemen",null,{"$f":"IFERROR(VLOOKUP(ROWS($D$2:D246),$A$2:$B$250,2,0),\"\")","v":""}]
[{"$f":"IF(ISNUMBER(FIND(#REF!,B247:B495)),MAX(A$1:$A246)+1,0)","v":0},"YT - Mayotte",null,{"$f":"IFERROR(VLOOKUP(ROWS($D$2:D247),$A$2:$B$250,2,0),\"\")","v":""}]
[{"$f":"IF(ISNUMBER(FIND(#REF!,B248:B496)),MAX(A$1:$A247)+1,0)","v":0},"ZA - South Africa",null,{"$f":"IFERROR(VLOOKUP(ROWS($D$2:D248),$A$2:$B$250,2,0),\"\")","v":""}]
[{"$f":"IF(ISNUMBER(FIND(#REF!,B249:B497)),MAX(A$1:$A248)+1,0)","v":0},"ZM - Zambia",null,{"$f":"IFERROR(VLOOKUP(ROWS($D$2:D249),$A$2:$B$250,2,0),\"\")","v":""}]
[{"$f":"IF(ISNUMBER(FIND(#REF!,B250:B498)),MAX(A$1:$A249)+1,0)","v":0},"ZW - Zimbabwe",null,{"$f":"IFERROR(VLOOKUP(ROWS($D$2:D250),$A$2:$B$250,2,0),\"\")","v":""}]